Workbook

Sheet INICIO
B2: FORMATO SOLICITUD COMPRA
B3: TIQUETES PREPAGO

Sheet INSTRUCTIVO
B5: IN-GF- 001 INSTRUCTIVO DE COMPRA DE TIQUETES
B6: VERSIÓN 005 FECHA VERSIÓN: 01/02/2023
B11: 1. Al seleccionar el botón “FORMULARIO DE COMPRA”, diligenciar la información correspondiente al solicitante: nombre o razón social, documento de identificación o NIT, dirección de recepción de los tiquetes prepago. 2. Seleccione la (s) estación (es) de peje sobre las cuales realizará la compra. 3. Una vez se despliegue la información de tarifas por categoría (tomar en cuenta que las categorias pueden variar en algunas estaciones), diligenciar las casillas (color gris) con el número de tiquetes prepago por cada estación y cada categoría. 4. En la última columna del formulario podrá visualizar el valor de los tiquetes por cada estación de peaje. 5. En el margen inferior derecho el usuario podrá visualizar el valor total de la compra. 6. Realizada la verificación de la información por parte del usuario, pulsar el botón “LIQUIDACIÓN”. 7. En el formulario de liquidación, el usuario podrá visualizar toda la información diligenciada en el “FORMULARIO DE COMPRA”. 8. Adicionalmente, el formulario liquidará el valor correspondiente a los gastos bancarios y los gastos de envío para totalizar el valor de la compra. El usuario seleccionara la opcion del lugar de la consigancion si es Local (Bogota) o a nivel Nacional. 9. El usuario debe imprimir el formato de liquidación y firmarlo, puesto que el archivo será el soporte que garantice el pago efectuado para que la Unión Temporal despache los tiquetes adquiridos. 10. Proceso de pago, validación del pago y entrega de tiquetes prepago: 11. Una vez el usuario tenga a su disposición el valor de adquisición de los tiquetes prepago (“FORMULARIO DE COMPRA”), deberá realizar el pago en el Banco Davivienda a la siguiente cuenta bancaria: 12. - No. Cuenta: 482800024150 13. - Tipo de cuenta: Ahorros 14. - Nombre de la cuenta: PA Peajes Nacionales Tiquetes Prepago 15. - Titular: PA FIDUCIARIA CORFICOLOMBIANA SA 16. - NIT: 800.256.769-6 17. Realizado el pago, en la casilla “Pegar Consignación” de la Liquidación, el usuario debe proceder a pegar el soporte de consignación y escanear dicho documento completo. 18. Posteriormente debe remitir al correo “prepagos@utpeajesnacionales.com.co” el documento digital (escaneado). 19. Una vez la UT reciba la información del pago, procederá a la verificación del ingreso a la respectiva cuenta. 20. Identificado el ingreso realizado por el usuario, la Unión Temporal contará con tres (3) días hábiles para el envío si el destino es Bogotá D.C., y seis (6) días hábiles para el envío a destino nacional.

Sheet TARIFAS (hidden)
C2: TARIFAS 16 ENE 2023 AL 15 ENE 2024
C3: IPC DIC 2020 | D3: 105.48
C4: IPC DIC 2021 | D4: 111.41
C5: FACTOR | D5: 1.0562
B7: 1 | C7: =+B7+1 -> 2 | D7: =+C7+1 -> 3 | E7: 4 | F7: 5 | G7: 6 | H7: 7 | I7: 8 | J7: 9 | K7: 10 | L7: 11 | M7: =+L7+1 -> 12 | N7: =+M7+1 -> 13 | O7: =+N7+1 -> 14 | P7: =+O7+1 -> 15 | Q7: =+P7+1 -> 16 | R7: 17 | S7: 18 | T7: 19 | U7: 20 | V7: 21 | W7: 22 | X7: 23 | Y7: 24 | Z7: 25
A8: No. | B8: Estación de Peaje | C8: Departamento | D8: CATEGORÍAS VEHICULARES | V8: EJES | Z8: FOSEVI
D9: I | E9: IE | F9: IEA | G9: IEB | H9: II | I9: IIE | J9: IIEE | K9: III | L9: IIIE | M9: IIIP | N9: IIIG | O9: IV | P9: IVE | Q9: V | R9: VB | S9: VE | T9: VI | U9: VII | V9: E. GRUA | W9: E. REMOL. | X9: E. ADIC. | Y9: E. CAÑERO
A10: 1 | B10: CASABLANCA | C10: CUNDINAMARCA | D10: $ 9,100 | E10: 0 | F10: 0 | G10: 0 | H10: $ 9,800 | I10: 0 | J10: 0 | K10: $ 25,600 | L10: 0 | M10: 0 | N10: 0 | O10: $ 31,800 | P10: 0 | Q10: $ 37,200 | R10: 0 | S10: 0 | T10: 0 | U10: 0 | V10: $ 7,500 | W10: $ 10,800 | X10: $ 11,000 | Y10: 0 | Z10: $ 300
A11: =A10+1 -> 2 | B11: SABOYÁ | C11: BOYACA | D11: $ 9,100 | E11: $ 2,400 | F11: 0 | G11: 0 | H11: $ 9,800 | I11: $ 2,400 | J11: 0 | K11: $ 25,600 | L11: 0 | M11: 0 | N11: 0 | O11: $ 31,800 | P11: 0 | Q11: $ 37,200 | R11: 0 | S11: 0 | T11: 0 | U11: 0 | V11: $ 7,500 | W11: $ 10,800 | X11: $ 11,000 | Y11: 0 | Z11: $ 300
A12: =A11+1 -> 3 | B12: OIBA | C12: SANTANDER | D12: $ 9,100 | E12: $ 800 | F12: 0 | G12: 0 | H12: $ 9,800 | I12: $ 800 | J12: 0 | K12: $ 25,600 | L12: 0 | M12: 0 | N12: 0 | O12: $ 31,800 | P12: 0 | Q12: $ 37,200 | R12: 0 | S12: 0 | T12: 0 | U12: 0 | V12: $ 7,500 | W12: $ 10,800 | X12: $ 11,000 | Y12: 0 | Z12: $ 300
A13: 4 | B13: CURITI | C13: SANTANDER | D13: $ 9,100 | E13: $ 6,900 | F13: 0 | G13: 0 | H13: $ 9,800 | I13: 0 | J13: 0 | K13: $ 25,600 | L13: 0 | M13: 0 | N13: 0 | O13: $ 31,800 | P13: 0 | Q13: $ 37,200 | R13: 0 | S13: 0 | T13: 0 | U13: 0 | V13: $ 7,500 | W13: $ 10,800 | X13: $ 11,000 | Y13: 0 | Z13: $ 300
A14: 5 | B14: LOS CUROS | C14: SANTANDER | D14: $ 9,100 | E14: 0 | F14: 0 | G14: 0 | H14: $ 9,800 | I14: 0 | J14: 0 | K14: $ 25,600 | L14: 0 | M14: 0 | N14: 0 | O14: $ 31,800 | P14: 0 | Q14: $ 37,200 | R14: 0 | S14: 0 | T14: 0 | U14: 0 | V14: $ 7,500 | W14: $ 10,800 | X14: $ 11,000 | Y14: 0 | Z14: $ 300
A15: 6 | B15: PLATANAL | C15: CESAR | D15: $ 8,800 | E15: $ 200 | F15: 0 | G15: 0 | H15: $ 9,800 | I15: $ 200 | J15: $ 5,100 | K15: $ 20,900 | L15: $ 10,700 | M15: 0 | N15: 0 | O15: $ 26,500 | P15: $ 13,500 | Q15: $ 30,400 | R15: 0 | S15: $ 15,300 | T15: 0 | U15: 0 | V15: $ 7,100 | W15: $ 9,300 | X15: $ 9,600 | Y15: 0 | Z15: $ 200
A16: 7 | B16: SAN DIEGO | C16: CESAR | D16: $ 5,200 | E16: $ 3,600 | F16: 0 | G16: 0 | H16: $ 5,600 | I16: 0 | J16: 0 | K16: $ 6,100 | L16: 0 | M16: 0 | N16: 0 | O16: $ 6,500 | P16: 0 | Q16: $ 13,700 | R16: $ 29,700 | S16: 0 | T16: $ 39,700 | U16: $ 45,100 | V16: 0 | W16: 0 | X16: 0 | Y16: 0 | Z16: $ 200
A17: 8 | B17: RINCÓN HONDO | C17: CESAR | D17: $ 10,500 | E17: 0 | F17: 0 | G17: 0 | H17: $ 11,100 | I17: 0 | J17: 0 | K17: $ 12,000 | L17: 0 | M17: 0 | N17: 0 | O17: $ 12,800 | P17: 0 | Q17: $ 13,800 | R17: $ 29,700 | S17: 0 | T17: $ 39,700 | U17: $ 45,500 | V17: 0 | W17: 0 | X17: 0 | Y17: 0 | Z17: $ 200
A18: 9 | B18: SAN JUAN | C18: GUAJIRA | D18: 0 | E18: 0 | F18: $ 5,200 | G18: $ 2,200 | H18: $ 10,500 | I18: 0 | J18: 0 | K18: $ 21,700 | L18: 0 | M18: 0 | N18: 0 | O18: $ 27,600 | P18: 0 | Q18: $ 31,200 | R18: 0 | S18: 0 | T18: 0 | U18: 0 | V18: $ 5,600 | W18: $ 7,400 | X18: $ 7,600 | Y18: 0 | Z18: $ 200
A19: 10 | B19: COCORNA | C19: ANTIOQUIA | D19: $ 13,500 | E19: $ 1,100 | F19: 0 | G19: 0 | H19: $ 21,200 | I19: $ 1,100 | J19: 0 | K19: $ 18,600 | L19: $ 1,100 | M19: 0 | N19: 0 | O19: $ 23,100 | P19: $ 1,100 | Q19: $ 46,400 | R19: 0 | S19: 0 | T19: $ 66,100 | U19: $ 66,100 | V19: 0 | W19: 0 | X19: 0 | Y19: 0 | Z19: $ 200
A20: 11 | B20: PUERTO TRIUNFO | C20: ANTIOQUIA | D20: $ 13,500 | E20: 0 | F20: 0 | G20: 0 | H20: $ 21,200 | I20: 0 | J20: 0 | K20: $ 18,600 | L20: 0 | M20: 0 | N20: 0 | O20: $ 23,100 | P20: 0 | Q20: $ 46,400 | R20: 0 | S20: 0 | T20: $ 66,100 | U20: $ 66,100 | V20: 0 | W20: 0 | X20: 0 | Y20: 0 | Z20: $ 200
A21: 12 | B21: LOBOGUERRERO | C21: VALLE DEL CAUCA | D21: $ 8,900 | E21: $ 600 | F21: 0 | G21: 0 | H21: $ 9,900 | I21: $ 600 | J21: 0 | K21: $ 24,000 | L21: 0 | M21: 0 | N21: 0 | O21: $ 31,500 | P21: 0 | Q21: $ 35,700 | R21: 0 | S21: 0 | T21: 0 | U21: 0 | V21: $ 7,000 | W21: $ 23,100 | X21: $ 11,000 | Y21: $ 7,000 | Z21: $ 200
A22: 13 | B22: LA PARADA | C22: NORTE DE SANTANDER | D22: $ 2,100 | E22: 0 | F22: 0 | G22: 0 | H22: $ 2,100 | I22: 0 | J22: 0 | K22: $ 2,100 | L22: 0 | M22: 0 | N22: 0 | O22: $ 2,100 | P22: 0 | Q22: $ 2,100 | R22: 0 | S22: 0 | T22: 0 | U22: 0 | V22: $ 2,100 | W22: 0 | X22: $ 2,100 | Y22: 0 | Z22: 0
A23: 14 | B23: EL KORAN | C23: CUNDINAMARCA | D23: $ 14,300 | E23: $ 3,100 | F23: 0 | G23: 0 | H23: $ 20,100 | I23: $ 3,100 | J23: 0 | K23: 0 | L23: 0 | M23: $ 28,300 | N23: $ 28,300 | O23: $ 59,100 | P23: 0 | Q23: $ 73,500 | R23: 0 | S23: 0 | T23: $ 87,200 | U23: 0 | V23: $ 7,200 | W23: $ 9,700 | X23: $ 10,100 | Y23: 0 | Z23: $ 200
A24: 15 | B24: TUNEL LA LINEA TOLIMA | C24: TOLIMA | D24: $ 9,400 | E24: $ 2,100 | F24: 0 | G24: 0 | H24: $ 10,500 | I24: $ 2,100 | J24: 0 | K24: $ 21,700 | L24: 0 | M24: 0 | N24: 0 | O24: $ 27,600 | P24: 0 | Q24: $ 31,200 | R24: 0 | S24: 0 | T24: 0 | U24: 0 | V24: $ 7,100 | W24: $ 9,300 | X24: $ 9,600 | Y24: 0 | Z24: $ 300
A25: 16 | B25: TUNEL LA LINEA QUINDIO | C25: QUINDIO | D25: $ 9,400 | E25: $ 2,100 | F25: 0 | G25: 0 | H25: $ 10,500 | I25: $ 2,100 | J25: 0 | K25: $ 21,700 | L25: 0 | M25: 0 | N25: 0 | O25: $ 27,600 | P25: 0 | Q25: $ 31,200 | R25: 0 | S25: 0 | T25: 0 | U25: 0 | V25: $ 7,100 | W25: $ 9,300 | X25: $ 9,600 | Y25: 0 | Z25: $ 300
A26: 17 | B26: ARCABUCO | C26: BOYACA | D26: $ 9,200 | E26: 0 | F26: 0 | G26: 0 | H26: $ 9,900 | I26: 0 | J26: 0 | K26: $ 21,300 | L26: 0 | M26: 0 | N26: 0 | O26: $ 27,100 | P26: 0 | Q26: $ 30,500 | R26: 0 | S26: 0 | T26: 0 | U26: 0 | V26: $ 7,100 | W26: $ 9,300 | X26: $ 9,600 | Y26: 0 | Z26: $ 300
A27: 18 | B27: BICENTENARIO | C27: CUNDINAMARCA | D27: $ 9,900 | E27: $ 4,900 | F27: 0 | G27: 0 | H27: $ 12,900 | I27: $ 6,100 | J27: 0 | K27: $ 30,300 | L27: 0 | M27: 0 | N27: 0 | O27: $ 36,800 | P27: 0 | Q27: $ 42,700 | R27: 0 | S27: 0 | T27: 0 | U27: 0 | V27: $ 7,100 | W27: $ 9,300 | X27: $ 9,600 | Y27: 0 | Z27: $ 300
A28: 19 | B28: CARIMAGUA | C28: CORDOBA | D28: $ 13,400 | E28: 0 | F28: 0 | G28: 0 | H28: $ 19,400 | I28: 0 | J28: 0 | K28: $ 19,400 | L28: 0 | M28: 0 | N28: 0 | O28: $ 19,400 | P28: 0 | Q28: $ 35,200 | R28: 0 | S28: 0 | T28: $ 55,900 | U28: $ 64,500 | V28: 0 | W28: 0 | X28: 0 | Y28: 0 | Z28: $ 300
A29: 20 | B29: EL CRUCERO | C29: BOYACA | D29: $ 9,200 | E29: $ 2,300 | F29: 0 | G29: 0 | H29: $ 9,900 | I29: $ 2,500 | J29: 0 | K29: $ 21,300 | L29: 0 | M29: 0 | N29: 0 | O29: $ 27,100 | P29: 0 | Q29: $ 30,500 | R29: 0 | S29: 0 | T29: 0 | U29: 0 | V29: $ 7,100 | W29: $ 9,300 | X29: $ 9,600 | Y29: 0 | Z29: $ 300
A30: =A39+1 -> 22 | B30: LOS LLANOS | C30: ANTIOQUIA | D30: $ 9,400 | E30: $ 4,900 | F30: 0 | G30: 0 | H30: $ 10,500 | I30: $ 5,200 | J30: 0 | K30: $ 21,700 | L30: 0 | M30: 0 | N30: 0 | O30: $ 27,600 | P30: 0 | Q30: $ 31,200 | R30: 0 | S30: 0 | T30: 0 | U30: 0 | V30: $ 7,100 | W30: $ 9,300 | X30: $ 9,600 | Y30: 0 | Z30: $ 300
A31: 23 | B31: RIO BLANCO | C31: SANTANDER | D31: $ 9,400 | E31: 0 | F31: 0 | G31: 0 | H31: $ 10,500 | I31: 0 | J31: 0 | K31: $ 21,700 | L31: 0 | M31: 0 | N31: 0 | O31: $ 27,600 | P31: 0 | Q31: $ 31,200 | R31: 0 | S31: 0 | T31: 0 | U31: 0 | V31: $ 7,100 | W31: $ 9,300 | X31: $ 9,600 | Y31: 0 | Z31: $ 300
A32: 24 | B32: RIO FRIO | C32: VALLE DEL CAUCA | D32: $ 9,200 | E32: 0 | F32: 0 | G32: 0 | H32: $ 9,900 | I32: 0 | J32: 0 | K32: $ 21,300 | L32: 0 | M32: 0 | N32: 0 | O32: $ 27,100 | P32: 0 | Q32: $ 30,500 | R32: 0 | S32: 0 | T32: 0 | U32: 0 | V32: $ 7,100 | W32: $ 9,300 | X32: $ 9,600 | Y32: $ 7,500 | Z32: $ 300
A33: 25 | B33: SACHICA | C33: BOYACA | D33: $ 9,200 | E33: 0 | F33: 0 | G33: 0 | H33: $ 9,900 | I33: 0 | J33: 0 | K33: $ 21,300 | L33: 0 | M33: 0 | N33: 0 | O33: $ 27,100 | P33: 0 | Q33: $ 30,500 | R33: 0 | S33: 0 | T33: 0 | U33: 0 | V33: $ 7,100 | W33: $ 9,300 | X33: $ 9,600 | Y33: 0 | Z33: $ 300
A34: 26 | B34: SAN CLEMENTE | C34: CALDAS | D34: $ 9,200 | E34: 0 | F34: 0 | G34: 0 | H34: $ 9,900 | I34: 0 | J34: 0 | K34: $ 21,300 | L34: 0 | M34: 0 | N34: 0 | O34: $ 27,100 | P34: 0 | Q34: $ 30,500 | R34: 0 | S34: 0 | T34: 0 | U34: 0 | V34: $ 7,100 | W34: $ 9,300 | X34: $ 9,600 | Y34: 0 | Z34: $ 300
A35: 27 | B35: TARAZA | C35: ANTIOQUIA | D35: $ 9,400 | E35: $ 6,200 | F35: 0 | G35: 0 | H35: $ 10,500 | I35: 0 | J35: 0 | K35: $ 21,700 | L35: 0 | M35: 0 | N35: 0 | O35: $ 27,600 | P35: 0 | Q35: $ 31,200 | R35: 0 | S35: 0 | T35: 0 | U35: 0 | V35: $ 7,100 | W35: $ 9,300 | X35: $ 9,600 | Y35: 0 | Z35: $ 300
A36: 28 | B36: TORO | C36: VALLE DEL CAUCA | D36: $ 9,200 | E36: $ 2,600 | F36: 0 | G36: 0 | H36: $ 9,900 | I36: $ 3,000 | J36: 0 | K36: $ 21,300 | L36: 0 | M36: 0 | N36: 0 | O36: $ 27,100 | P36: 0 | Q36: $ 30,500 | R36: 0 | S36: 0 | T36: 0 | U36: 0 | V36: $ 7,100 | W36: $ 9,300 | X36: $ 9,600 | Y36: $ 7,500 | Z36: $ 300
A37: 29 | B37: CANO | C37: NARIÑO | D37: $ 11,200 | E37: 0 | F37: 0 | G37: 0 | H37: $ 11,900 | I37: 0 | J37: 0 | K37: $ 24,700 | L37: 0 | M37: 0 | N37: 0 | O37: $ 32,400 | P37: 0 | Q37: $ 37,500 | R37: 0 | S37: 0 | T37: 0 | U37: 0 | V37: $ 7,200 | W37: $ 10,600 | X37: $ 10,900 | Y37: 0 | Z37: $ 300
A38: 30 | B38: CERRITOS II | C38: RISARALDA | D38: $ 13,400 | E38: $ 2,900 | F38: 0 | G38: 0 | H38: $ 15,300 | I38: $ 9,900 | J38: 0 | K38: $ 37,900 | L38: 0 | M38: 0 | N38: 0 | O38: $ 49,600 | P38: 0 | Q38: $ 56,800 | R38: 0 | S38: 0 | T38: 0 | U38: 0 | V38: $ 11,500 | W38: $ 16,800 | X38: $ 17,000 | Y38: 0 | Z38: $ 200
A39: =A29+1 -> 21 | B39: EL BORDO | C39: CAUCA | D39: $ 9,400 | E39: 0 | F39: 0 | G39: 0 | H39: $ 10,500 | I39: 0 | J39: 0 | K39: $ 21,700 | L39: 0 | M39: 0 | N39: 0 | O39: $ 27,600 | P39: 0 | Q39: $ 31,200 | R39: 0 | S39: 0 | T39: 0 | U39: 0 | V39: $ 7,100 | W39: $ 9,300 | X39: $ 9,600 | Y39: 0 | Z39: $ 300
A40: =A38+1 -> 31 | B40: GAMARRA | C40: CESAR | D40: $ 8,800 | E40: $ 200 | F40: 0 | G40: 0 | H40: $ 9,800 | I40: $ 200 | J40: $ 5,100 | K40: $ 20,900 | L40: $ 10,700 | M40: 0 | N40: 0 | O40: $ 26,500 | P40: $ 13,500 | Q40: $ 30,400 | R40: 0 | S40: $ 15,300 | T40: 0 | U40: 0 | V40: $ 7,100 | W40: $ 9,300 | X40: $ 9,600 | Y40: 0 | Z40: $ 200
A41: 32 | B41: TUNIA | C41: CAUCA | D41: $ 9,500 | E41: $ 5,000 | F41: 0 | G41: 0 | H41: $ 11,500 | I41: $ 5,900 | J41: 0 | K41: $ 31,100 | L41: 0 | M41: 0 | N41: 0 | O41: $ 40,500 | P41: 0 | Q41: $ 46,600 | R41: 0 | S41: 0 | T41: 0 | U41: 0 | V41: $ 7,100 | W41: $ 22,700 | X41: $ 11,500 | Y41: $ 7,100 | Z41: $ 200
A42: 33 | B42: AGUAS NEGRAS | C42: SANTANDER | D42: $ 11,700 | E42: 0 | F42: 0 | G42: 0 | H42: $ 14,800 | I42: 0 | J42: 0 | K42: $ 34,700 | L42: 0 | M42: 0 | N42: 0 | O42: $ 41,600 | P42: 0 | Q42: $ 48,900 | R42: 0 | S42: 0 | T42: 0 | U42: 0 | V42: $ 7,800 | W42: $ 10,800 | X42: $ 11,000 | Y42: 0 | Z42: $ 200
A43: 34 | B43: LA GOMEZ | C43: SANTANDER | D43: $ 11,700 | E43: 0 | F43: 0 | G43: 0 | H43: $ 14,800 | I43: 0 | J43: 0 | K43: $ 34,700 | L43: 0 | M43: 0 | N43: 0 | O43: $ 41,600 | P43: 0 | Q43: $ 48,900 | R43: 0 | S43: 0 | T43: 0 | U43: 0 | V43: $ 7,800 | W43: $ 10,800 | X43: $ 11,000 | Y43: 0 | Z43: $ 200
A44: 35 | B44: MORRISON | C44: CESAR | D44: $ 10,600 | E44: 0 | F44: 0 | G44: 0 | H44: $ 11,500 | I44: 0 | J44: 0 | K44: $ 23,900 | L44: 0 | M44: 0 | N44: 0 | O44: $ 30,500 | P44: 0 | Q44: $ 34,700 | R44: 0 | S44: 0 | T44: 0 | U44: 0 | V44: $ 7,800 | W44: $ 10,800 | X44: $ 11,000 | Y44: 0 | Z44: $ 200
A45: 36 | B45: PAILITAS | C45: CESAR | D45: $ 10,600 | E45: $ 5,200 | F45: 0 | G45: 0 | H45: $ 11,500 | I45: $ 200 | J45: $ 5,900 | K45: $ 23,900 | L45: $ 12,000 | M45: 0 | N45: 0 | O45: $ 30,500 | P45: $ 15,300 | Q45: $ 34,700 | R45: 0 | S45: $ 17,500 | T45: 0 | U45: 0 | V45: $ 7,800 | W45: $ 10,800 | X45: $ 11,000 | Y45: 0 | Z45: $ 200
A46: 37 | B46: ZAMBITO | C46: SANTANDER | D46: $ 11,700 | E46: 0 | F46: 0 | G46: 0 | H46: $ 14,800 | I46: 0 | J46: 0 | K46: $ 34,700 | L46: 0 | M46: 0 | N46: 0 | O46: $ 41,600 | P46: 0 | Q46: $ 48,900 | R46: 0 | S46: 0 | T46: 0 | U46: 0 | V46: $ 7,800 | W46: $ 10,800 | X46: $ 11,000 | Y46: 0 | Z46: $ 200
B47: P. Cerritos: Mediante Resolución No.20233040016505 se modifica la tarifa de la Cat I de la Resol No.20233040016165
B48: 1 | C48: =+B48+1 -> 2 | D48: =+C48+1 -> 3 | E48: 4 | F48: 5 | G48: 6 | H48: 7 | I48: 8 | J48: 9 | K48: 10 | L48: 11 | M48: 12 | N48: 13 | O48: 14 | P48: 15 | Q48: 16 | R48: 17 | S48: 18 | T48: 19 | U48: 20 | V48: 21 | W48: 22
A49: No. | B49: Estación de Peaje | C49: Departamento | D49: CATEGORÍAS VEHICULARES 2024 | X49: EJES 2024 | AB49: FOSEVI 2024 | AC49: FOSEVI 2023 | AD49: DIFERENCIA FOSEVI
D50: I | E50: IE | F50: IEA | G50: IEB | H50: IEQ | I50: II | J50: IIE | K50: IIEE | L50: IIEQ | M50: III | N50: IIIE | O50: IIIP | P50: IIIG | Q50: IV | R50: IVE | S50: V | T50: VB | U50: VE | V50: VI | W50: VII | X50: E. GRUA | Y50: E. REMOL. | Z50: E. ADIC. | AA50: E. CAÑERO
A51: 1 | B51: ARCABUCO | C51: BOYACA | D51: $ 10,600 | E51: 0 | F51: 0 | G51: 0 | H51: 0 | I51: $ 11,400 | J51: 0 | K51: 0 | L51: 0 | M51: $ 24,300 | N51: 0 | O51: 0 | P51: 0 | Q51: $ 30,900 | R51: 0 | S51: $ 34,700 | T51: 0 | U51: 0 | V51: 0 | W51: 0 | X51: $ 8,000 | Y51: $ 10,500 | Z51: $ 10,900 | AA51: 0 | AB51: $ 500 | AC51: $ 300 | AD51: $ 200
A52: 2 | B52: BICENTENARIO | C52: CUNDINAMARCA | D52: $ 11,400 | E52: $ 5,700 | F52: 0 | G52: 0 | H52: 0 | I52: $ 14,800 | J52: $ 7,100 | K52: 0 | L52: 0 | M52: $ 34,500 | N52: 0 | O52: 0 | P52: 0 | Q52: $ 41,800 | R52: 0 | S52: $ 48,500 | T52: 0 | U52: 0 | V52: 0 | W52: 0 | X52: $ 8,000 | Y52: $ 10,500 | Z52: $ 10,900 | AA52: 0 | AB52: $ 500 | AC52: $ 300 | AD52: $ 200
A53: 3 | B53: T. LA LINEA TOLIMA | C53: TOLIMA | D53: $ 10,800 | E53: $ 2,600 | F53: 0 | G53: 0 | H53: 0 | I53: $ 12,100 | J53: $ 2,600 | K53: 0 | L53: 0 | M53: $ 24,700 | N53: 0 | O53: 0 | P53: 0 | Q53: $ 31,400 | R53: 0 | S53: $ 35,500 | T53: 0 | U53: 0 | V53: 0 | W53: 0 | X53: $ 8,000 | Y53: $ 10,500 | Z53: $ 10,900 | AA53: 0 | AB53: $ 500 | AC53: $ 300 | AD53: $ 200
A54: 4 | B54: T. LA LINEA QUINDIO | C54: QUINDIO | D54: $ 10,800 | E54: $ 2,600 | F54: 0 | G54: 0 | H54: $ 3,800 | I54: $ 12,100 | J54: $ 2,600 | K54: 0 | L54: $ 3,800 | M54: $ 24,700 | N54: 0 | O54: 0 | P54: 0 | Q54: $ 31,400 | R54: 0 | S54: $ 35,500 | T54: 0 | U54: 0 | V54: 0 | W54: 0 | X54: $ 8,000 | Y54: $ 10,500 | Z54: $ 10,900 | AA54: 0 | AB54: $ 500 | AC54: $ 300 | AD54: $ 200
A55: 5 | B55: CANO | C55: NARIÑO | D55: $ 12,900 | E55: 0 | F55: 0 | G55: 0 | H55: 0 | I55: $ 13,700 | J55: 0 | K55: 0 | L55: 0 | M55: $ 28,100 | N55: 0 | O55: 0 | P55: 0 | Q55: $ 36,900 | R55: 0 | S55: $ 42,600 | T55: 0 | U55: 0 | V55: 0 | W55: 0 | X55: $ 8,100 | Y55: $ 12,000 | Z55: $ 12,300 | AA55: 0 | AB55: $ 500 | AC55: $ 300 | AD55: $ 200
A56: 6 | B56: CARIMAGUA | C56: CORDOBA | D56: $ 15,400 | E56: 0 | F56: 0 | G56: 0 | H56: 0 | I56: $ 22,100 | J56: 0 | K56: 0 | L56: 0 | M56: $ 22,100 | N56: 0 | O56: 0 | P56: 0 | Q56: $ 22,100 | R56: 0 | S56: $ 40,000 | T56: 0 | U56: 0 | V56: $ 63,400 | W56: $ 73,200 | X56: 0 | Y56: 0 | Z56: 0 | AA56: 0 | AB56: $ 500 | AC56: $ 300 | AD56: $ 200
A57: 7 | B57: EL CRUCERO | C57: BOYACA | D57: $ 10,600 | E57: $ 2,800 | F57: 0 | G57: 0 | H57: 0 | I57: $ 11,400 | J57: $ 3,000 | K57: 0 | L57: 0 | M57: $ 24,300 | N57: 0 | O57: 0 | P57: 0 | Q57: $ 30,900 | R57: 0 | S57: $ 34,700 | T57: 0 | U57: 0 | V57: 0 | W57: 0 | X57: $ 8,000 | Y57: $ 10,500 | Z57: $ 10,900 | AA57: 0 | AB57: $ 500 | AC57: $ 300 | AD57: $ 200
A58: 8 | B58: EL BORDO | C58: CAUCA | D58: $ 10,800 | E58: 0 | F58: 0 | G58: 0 | H58: 0 | I58: $ 12,100 | J58: 0 | K58: 0 | L58: 0 | M58: $ 24,700 | N58: 0 | O58: 0 | P58: 0 | Q58: $ 31,400 | R58: 0 | S58: $ 35,500 | T58: 0 | U58: 0 | V58: 0 | W58: 0 | X58: $ 8,000 | Y58: $ 10,500 | Z58: $ 10,900 | AA58: 0 | AB58: $ 500 | AC58: $ 300 | AD58: $ 200
A59: 9 | B59: LOS LLANOS | C59: ANTIOQUIA | D59: $ 10,800 | E59: $ 5,700 | F59: 0 | G59: 0 | H59: 0 | I59: $ 12,100 | J59: $ 6,100 | K59: 0 | L59: 0 | M59: $ 24,700 | N59: 0 | O59: 0 | P59: 0 | Q59: $ 31,400 | R59: 0 | S59: $ 35,500 | T59: 0 | U59: 0 | V59: 0 | W59: 0 | X59: $ 8,000 | Y59: $ 10,500 | Z59: $ 10,900 | AA59: 0 | AB59: $ 500 | AC59: $ 300 | AD59: $ 200
A60: 10 | B60: RIO BLANCO | C60: SANTANDER | D60: $ 10,800 | E60: $ 3,600 | F60: 0 | G60: 0 | H60: 0 | I60: $ 12,100 | J60: $ 4,700 | K60: 0 | L60: 0 | M60: $ 24,700 | N60: 0 | O60: 0 | P60: 0 | Q60: $ 31,400 | R60: 0 | S60: $ 35,500 | T60: 0 | U60: 0 | V60: 0 | W60: 0 | X60: $ 8,000 | Y60: $ 10,500 | Z60: $ 10,900 | AA60: 0 | AB60: $ 500 | AC60: $ 300 | AD60: $ 200
A61: 11 | B61: RIO FRIO | C61: VALLE DEL CAUCA | D61: $ 10,600 | E61: 0 | F61: 0 | G61: 0 | H61: 0 | I61: $ 11,400 | J61: 0 | K61: 0 | L61: 0 | M61: $ 24,300 | N61: 0 | O61: 0 | P61: 0 | Q61: $ 30,900 | R61: 0 | S61: $ 34,700 | T61: 0 | U61: 0 | V61: 0 | W61: 0 | X61: $ 8,000 | Y61: $ 10,500 | Z61: $ 10,900 | AA61: $ 8,500 | AB61: $ 500 | AC61: $ 300 | AD61: $ 200
A62: 12 | B62: SACHICA | C62: BOYACA | D62: $ 10,600 | E62: $ 3,600 | F62: 0 | G62: 0 | H62: 0 | I62: $ 11,400 | J62: $ 3,600 | K62: 0 | L62: 0 | M62: $ 24,300 | N62: 0 | O62: 0 | P62: 0 | Q62: $ 30,900 | R62: 0 | S62: $ 34,700 | T62: 0 | U62: 0 | V62: 0 | W62: 0 | X62: $ 8,000 | Y62: $ 10,500 | Z62: $ 10,900 | AA62: 0 | AB62: $ 500 | AC62: $ 300 | AD62: $ 200
A63: 13 | B63: SAN CLEMENTE | C63: CALDAS | D63: $ 10,600 | E63: 0 | F63: 0 | G63: 0 | H63: 0 | I63: $ 11,400 | J63: 0 | K63: 0 | L63: 0 | M63: $ 24,300 | N63: 0 | O63: 0 | P63: 0 | Q63: $ 30,900 | R63: 0 | S63: $ 34,700 | T63: 0 | U63: 0 | V63: 0 | W63: 0 | X63: $ 8,000 | Y63: $ 10,500 | Z63: $ 10,900 | AA63: 0 | AB63: $ 500 | AC63: $ 300 | AD63: $ 200
A64: 14 | B64: TORO | C64: VALLE DEL CAUCA | D64: $ 10,600 | E64: $ 3,100 | F64: 0 | G64: 0 | H64: 0 | I64: $ 11,400 | J64: $ 3,600 | K64: 0 | L64: 0 | M64: $ 24,300 | N64: 0 | O64: 0 | P64: 0 | Q64: $ 30,900 | R64: 0 | S64: $ 34,700 | T64: 0 | U64: 0 | V64: 0 | W64: 0 | X64: $ 8,000 | Y64: $ 10,500 | Z64: $ 10,900 | AA64: $ 8,500 | AB64: $ 500 | AC64: $ 300 | AD64: $ 200
A65: 15 | B65: TARAZA | C65: ANTIOQUIA | D65: $ 10,800 | E65: $ 7,200 | F65: 0 | G65: 0 | H65: 0 | I65: $ 12,100 | J65: 0 | K65: 0 | L65: 0 | M65: $ 24,700 | N65: 0 | O65: 0 | P65: 0 | Q65: $ 31,400 | R65: 0 | S65: $ 35,500 | T65: 0 | U65: 0 | V65: 0 | W65: 0 | X65: $ 8,000 | Y65: $ 10,500 | Z65: $ 10,900 | AA65: 0 | AB65: $ 500 | AC65: $ 300 | AD65: $ 200
A66: 16 | B66: CASABLANCA | C66: CUNDINAMARCA | D66: $ 10,500 | E66: 0 | F66: 0 | G66: 0 | H66: 0 | I66: $ 11,300 | J66: 0 | K66: 0 | L66: 0 | M66: $ 29,200 | N66: 0 | O66: 0 | P66: 0 | Q66: $ 36,200 | R66: 0 | S66: $ 42,300 | T66: 0 | U66: 0 | V66: 0 | W66: 0 | X66: $ 8,500 | Y66: $ 12,200 | Z66: $ 12,400 | AA66: 0 | AB66: $ 500 | AC66: $ 300 | AD66: $ 200
A67: 17 | B67: SABOYÁ | C67: BOYACA | D67: $ 10,500 | E67: $ 2,900 | F67: 0 | G67: 0 | H67: 0 | I67: $ 11,300 | J67: $ 2,900 | K67: 0 | L67: 0 | M67: $ 29,200 | N67: 0 | O67: 0 | P67: 0 | Q67: $ 36,200 | R67: 0 | S67: $ 42,300 | T67: 0 | U67: 0 | V67: 0 | W67: 0 | X67: $ 8,500 | Y67: $ 12,200 | Z67: $ 12,400 | AA67: 0 | AB67: $ 500 | AC67: $ 300 | AD67: $ 200
A68: 18 | B68: OIBA | C68: SANTANDER | D68: $ 10,500 | E68: $ 1,100 | F68: 0 | G68: 0 | H68: 0 | I68: $ 11,300 | J68: $ 1,100 | K68: 0 | L68: 0 | M68: $ 29,200 | N68: 0 | O68: 0 | P68: 0 | Q68: $ 36,200 | R68: 0 | S68: $ 42,300 | T68: 0 | U68: 0 | V68: 0 | W68: 0 | X68: $ 8,500 | Y68: $ 12,200 | Z68: $ 12,400 | AA68: 0 | AB68: $ 500 | AC68: $ 300 | AD68: $ 200
A69: 19 | B69: CURITI | C69: SANTANDER | D69: $ 10,500 | E69: $ 8,000 | F69: 0 | G69: 0 | H69: 0 | I69: $ 11,300 | J69: 0 | K69: 0 | L69: 0 | M69: $ 29,200 | N69: 0 | O69: 0 | P69: 0 | Q69: $ 36,200 | R69: 0 | S69: $ 42,300 | T69: 0 | U69: 0 | V69: 0 | W69: 0 | X69: $ 8,500 | Y69: $ 12,200 | Z69: $ 12,400 | AA69: 0 | AB69: $ 500 | AC69: $ 300 | AD69: $ 200
A70: 20 | B70: LOS CUROS | C70: SANTANDER | D70: $ 10,500 | E70: 0 | F70: 0 | G70: 0 | H70: 0 | I70: $ 11,300 | J70: 0 | K70: 0 | L70: 0 | M70: $ 29,200 | N70: 0 | O70: 0 | P70: 0 | Q70: $ 36,200 | R70: 0 | S70: $ 42,300 | T70: 0 | U70: 0 | V70: 0 | W70: 0 | X70: $ 8,500 | Y70: $ 12,200 | Z70: $ 12,400 | AA70: 0 | AB70: $ 500 | AC70: $ 300 | AD70: $ 200
A71: 21 | B71: PLATANAL | C71: CESAR | D71: $ 10,300 | E71: $ 500 | F71: 0 | G71: 0 | H71: 0 | I71: $ 11,400 | J71: $ 500 | K71: $ 6,100 | L71: 0 | M71: $ 23,900 | N71: $ 12,400 | O71: 0 | P71: 0 | Q71: $ 30,300 | R71: $ 15,600 | S71: $ 34,700 | T71: 0 | U71: $ 17,600 | V71: 0 | W71: 0 | X71: $ 8,000 | Y71: $ 10,500 | Z71: $ 10,900 | AA71: 0 | AB71: $ 500 | AC71: $ 200 | AD71: $ 300
A72: 22 | B72: SAN DIEGO | C72: CESAR | D72: $ 6,200 | E72: $ 4,400 | F72: 0 | G72: 0 | H72: 0 | I72: $ 6,600 | J72: 0 | K72: 0 | L72: 0 | M72: $ 7,200 | N72: 0 | O72: 0 | P72: 0 | Q72: $ 7,700 | R72: 0 | S72: $ 15,800 | T72: $ 33,900 | U72: 0 | V72: $ 45,200 | W72: $ 51,300 | X72: 0 | Y72: 0 | Z72: 0 | AA72: 0 | AB72: $ 500 | AC72: $ 200 | AD72: $ 300
A73: 23 | B73: RINCÓN HONDO | C73: CESAR | D73: $ 12,200 | E73: 0 | F73: 0 | G73: 0 | H73: 0 | I73: $ 12,900 | J73: 0 | K73: 0 | L73: 0 | M73: $ 13,900 | N73: 0 | O73: 0 | P73: 0 | Q73: $ 14,800 | R73: 0 | S73: $ 15,900 | T73: $ 33,900 | U73: 0 | V73: $ 45,200 | W73: $ 51,800 | X73: 0 | Y73: 0 | Z73: 0 | AA73: 0 | AB73: $ 500 | AC73: $ 200 | AD73: $ 300
A74: 24 | B74: SAN JUAN | C74: CESAR | D74: 0 | E74: 0 | F74: $ 6,200 | G74: $ 2,800 | H74: 0 | I74: $ 12,200 | J74: $ 2,800 | K74: 0 | L74: 0 | M74: $ 24,800 | N74: 0 | O74: 0 | P74: 0 | Q74: $ 31,500 | R74: 0 | S74: $ 35,600 | T74: 0 | U74: 0 | V74: 0 | W74: 0 | X74: $ 6,300 | Y74: $ 8,400 | Z74: $ 8,600 | AA74: 0 | AB74: $ 500 | AC74: $ 200 | AD74: $ 300
A75: 25 | B75: COCORNA | C75: ANTIOQUIA | D75: $ 15,600 | E75: $ 1,500 | F75: 0 | G75: 0 | H75: 0 | I75: $ 24,300 | J75: $ 1,500 | K75: 0 | L75: 0 | M75: $ 21,300 | N75: $ 1,500 | O75: 0 | P75: 0 | Q75: $ 26,400 | R75: $ 1,500 | S75: $ 52,800 | T75: 0 | U75: 0 | V75: $ 75,100 | W75: $ 75,100 | X75: 0 | Y75: 0 | Z75: 0 | AA75: 0 | AB75: $ 500 | AC75: $ 200 | AD75: $ 300
A76: 26 | B76: PUERTO TRIUNFO | C76: ANTIOQUIA | D76: $ 15,600 | E76: 0 | F76: 0 | G76: 0 | H76: 0 | I76: $ 24,300 | J76: 0 | K76: 0 | L76: 0 | M76: $ 21,300 | N76: 0 | O76: 0 | P76: 0 | Q76: $ 26,400 | R76: 0 | S76: $ 52,800 | T76: 0 | U76: 0 | V76: $ 75,100 | W76: $ 75,100 | X76: 0 | Y76: 0 | Z76: 0 | AA76: 0 | AB76: $ 500 | AC76: $ 200 | AD76: $ 300
A77: 27 | B77: CERRITOS II | C77: RISARALDA | D77: $ 15,500 | E77: $ 3,600 | F77: 0 | G77: 0 | H77: 0 | I77: $ 17,600 | J77: $ 11,500 | K77: 0 | L77: 0 | M77: $ 43,200 | N77: 0 | O77: 0 | P77: 0 | Q77: $ 56,400 | R77: 0 | S77: $ 64,600 | T77: 0 | U77: 0 | V77: 0 | W77: 0 | X77: $ 13,000 | Y77: $ 19,000 | Z77: $ 19,200 | AA77: 0 | AB77: $ 500 | AC77: $ 200 | AD77: $ 300
A78: 28 | B78: LA PARADA | C78: NORTE DE SANTANDER | D78: $ 2,400 | E78: 0 | F78: 0 | G78: 0 | H78: 0 | I78: $ 2,400 | J78: 0 | K78: 0 | L78: 0 | M78: $ 2,400 | N78: 0 | O78: 0 | P78: 0 | Q78: $ 2,400 | R78: 0 | S78: $ 2,400 | T78: 0 | U78: 0 | V78: 0 | W78: 0 | X78: $ 2,400 | Y78: 0 | Z78: $ 2,400 | AA78: 0 | AB78: 0 | AC78: 0 | AD78: 0
A79: 29 | B79: EL KORAN | C79: CUNDINAMARCA | D79: $ 16,500 | E79: $ 3,800 | F79: 0 | G79: 0 | H79: 0 | I79: $ 23,000 | J79: $ 3,800 | K79: 0 | L79: 0 | M79: 0 | N79: 0 | O79: $ 32,300 | P79: $ 32,300 | Q79: $ 67,200 | R79: 0 | S79: $ 83,400 | T79: 0 | U79: 0 | V79: $ 98,900 | W79: 0 | X79: $ 8,100 | Y79: $ 11,000 | Z79: $ 11,400 | AA79: 0 | AB79: $ 500 | AC79: $ 200 | AD79: $ 300
A80: 30 | B80: RIO BOGOTA | C80: CUNDINAMARCA | D80: $ 11,200 | E80: $ 500 | F80: 0 | G80: 0 | H80: 0 | I80: $ 16,700 | J80: $ 500 | K80: 0 | L80: 0 | M80: $ 14,600 | N80: $ 500 | O80: 0 | P80: 0 | Q80: $ 19,300 | R80: $ 500 | S80: $ 32,700 | T80: 0 | U80: 0 | V80: $ 44,100 | W80: $ 47,700 | X80: 0 | Y80: 0 | Z80: 0 | AA80: 0 | AB80: $ 500
A81: 30 | B81: CORZO | C81: CUNDINAMARCA | D81: $ 11,200 | E81: $ 500 | F81: 0 | G81: 0 | H81: 0 | I81: $ 16,700 | J81: $ 500 | K81: 0 | L81: 0 | M81: $ 14,600 | N81: $ 500 | O81: 0 | P81: 0 | Q81: $ 19,300 | R81: $ 500 | S81: $ 32,700 | T81: 0 | U81: 0 | V81: $ 44,100 | W81: $ 47,700 | X81: 0 | Y81: 0 | Z81: 0 | AA81: 0 | AB81: $ 500

Sheet FORMULARIO
B2: F-GF-019 | C2: FORMULARIO DE COMPRA | Z2: 1
C3: TIQUETES PREPAGO | Z3: =+Z2+1 -> 2
B4: VERSIÓN | C4: 010 | Z4: =+Z3+1 -> 3
B5: FECHA VERSIÓN | C5: 2024-04-01 | Z5: 4
Z6: 5
B7: Fecha | Z7: 6
Z8: 7
B9: Nombre del Cliente | K9: Documento ID | U9: No. | Z9: 8
Z10: 9
B11: Direccion de envio Tiquetes | K11: Ciudad | T11: Departamento | Z11: 10
B12: Contacto | Z12: 11
B13: N° Celular Contacto | M13: E_MAIL | Z13: 12
Z14: 13
A15: No. | B15: Peaje | C15: DEPARTAMENTO | D15: Cant | E15: =+CONCATENATE("Tar Cat ",TARIFAS!D9) -> Tar Cat I | F15: Cant | G15: =+CONCATENATE("Tar Cat ",TARIFAS!H9) -> Tar Cat II | H15: Cant | I15: =+CONCATENATE("Tar Cat ",TARIFAS!K9) -> Tar Cat III | J15: Cant | K15: =+CONCATENATE("Tar Cat ",TARIFAS!M9) -> Tar Cat IIIP | L15: Cant | M15: =+CONCATENATE("Tar Cat ",TARIFAS!N9) -> Tar Cat IIIG | N15: Cant | O15: =+CONCATENATE("Tar Cat ",TARIFAS!O9) -> Tar Cat IV | P15: Cant | Q15: =+CONCATENATE("Tar Cat ",TARIFAS!Q9) -> Tar Cat V | R15: Cant | S15: =+CONCATENATE("Tar Cat ",TARIFAS!T9) -> Tar Cat VI | T15: Cant | U15: =+CONCATENATE("Tar Cat ",TARIFAS!U9) -> Tar Cat VII | V15: Total Cant | W15: Valor total | Z15: 14 | AA15: =+K9 -> Documento ID
A16: =IF(B16>"",1,"") -> 1 | B16: RIO BOGOTA | C16: =IF(B16="","",VLOOKUP(B16,TARIFAS!$B$49:$C$81,2,0)) -> CUNDINAMARCA | E16: =IF(B16="","",VLOOKUP(B16,TARIFAS!$B$51:$W$81,3,0)) -> 11,200 | G16: =IF(B16="","",VLOOKUP(B16,TARIFAS!$B$51:$W$81,8,0)) -> 16,700 | I16: =IF(B16="","",VLOOKUP(B16,TARIFAS!$B$51:$W$81,12,0)) -> 14,600 | K16: =IF(B16="","",VLOOKUP(B16,TARIFAS!$B$51:$W$81,14,0)) -> 0 | M16: =IF(B16="","",VLOOKUP(B16,TARIFAS!$B$51:$W$81,15,0)) -> 0 | O16: =IF(B16="","",VLOOKUP(B16,TARIFAS!$B$51:$W$81,16,0)) -> 19,300 | Q16: =IF(B16="","",VLOOKUP(B16,TARIFAS!$B$51:$W$81,18,0)) -> 32,700 | S16: =IF(B16="","",VLOOKUP(B16,TARIFAS!$B$51:$W$81,21,0)) -> 44,100 | U16: =IF(B16="","",VLOOKUP(B16,TARIFAS!$B$51:$W$81,22,0)) -> 47,700 | V16: =+IF(B16="","",IF(B16=$AA$32,D16+F16+H16+J16+L16+N16+P16+R16+T16,IF(B16=$AA$33,D16+F16+H16+J16+L16+N16+P16+R16+T16,IF(B16=$AA$34,D16+F16+H16+N16+P16+R16+T16,IF(B16=$AA$35,D16+F16+H16+N16+P16+R16+T16,IF(B16=$AA$36,D16+F16+H16+J16+L16+N16+P16+R16+T16,SUM(D16,F16,H16,N16,P16))))))) -> 0 | W16: =+IF(C16="",0,(D16*E16)+(F16*G16)+(H16*I16)+(J16*K16)+(L16*M16)+(N16*O16)+(P16*Q16)+(R16*S16)+(T16*U16)) -> 0 | Z16: 15
A17: =IF(A16<1,"",IF(B17="","",IF(A16="","",A16+1))) ->  | C17: =IF(B17="","",VLOOKUP(B17,TARIFAS!$B$49:$C$81,2,0)) ->  | E17: =IF(B17="","",VLOOKUP(B17,TARIFAS!$B$51:$W$81,3,0)) ->  | G17: =IF(B17="","",VLOOKUP(B17,TARIFAS!$B$51:$W$81,8,0)) ->  | I17: =IF(B17="","",VLOOKUP(B17,TARIFAS!$B$51:$W$81,12,0)) ->  | K17: =IF(B17="","",VLOOKUP(B17,TARIFAS!$B$51:$W$81,14,0)) ->  | M17: =IF(B17="","",VLOOKUP(B17,TARIFAS!$B$51:$W$81,15,0)) ->  | O17: =IF(B17="","",VLOOKUP(B17,TARIFAS!$B$51:$W$81,16,0)) ->  | Q17: =IF(B17="","",VLOOKUP(B17,TARIFAS!$B$51:$W$81,18,0)) ->  | S17: =IF(B17="","",VLOOKUP(B17,TARIFAS!$B$51:$W$81,21,0)) ->  | U17: =IF(B17="","",VLOOKUP(B17,TARIFAS!$B$51:$W$81,22,0)) ->  | V17: =+IF(B17="","",IF(B17=$AA$32,D17+F17+H17+J17+L17+N17+P17+R17+T17,IF(B17=$AA$33,D17+F17+H17+J17+L17+N17+P17+R17+T17,IF(B17=$AA$34,D17+F17+H17+N17+P17+R17+T17,IF(B17=$AA$35,D17+F17+H17+N17+P17+R17+T17,IF(B17=$AA$36,D17+F17+H17+J17+L17+N17+P17+R17+T17,SUM(D17,F17,H17,N17,P17))))))) ->  | W17: =+IF(C17="",0,(D17*E17)+(F17*G17)+(H17*I17)+(J17*K17)+(L17*M17)+(N17*O17)+(P17*Q17)+(R17*S17)+(T17*U17)) -> 0 | Z17: 16 | AA17: NIT
C18: =IF(B18="","",VLOOKUP(B18,TARIFAS!$B$49:$C$81,2,0)) ->  | E18: =IF(B18="","",VLOOKUP(B18,TARIFAS!$B$51:$W$81,3,0)) ->  | G18: =IF(B18="","",VLOOKUP(B18,TARIFAS!$B$51:$W$81,8,0)) ->  | I18: =IF(B18="","",VLOOKUP(B18,TARIFAS!$B$51:$W$81,12,0)) ->  | K18: =IF(B18="","",VLOOKUP(B18,TARIFAS!$B$51:$W$81,14,0)) ->  | M18: =IF(B18="","",VLOOKUP(B18,TARIFAS!$B$51:$W$81,15,0)) ->  | O18: =IF(B18="","",VLOOKUP(B18,TARIFAS!$B$51:$W$81,16,0)) ->  | Q18: =IF(B18="","",VLOOKUP(B18,TARIFAS!$B$51:$W$81,18,0)) ->  | S18: =IF(B18="","",VLOOKUP(B18,TARIFAS!$B$51:$W$81,21,0)) ->  | U18: =IF(B18="","",VLOOKUP(B18,TARIFAS!$B$51:$W$81,22,0)) ->  | V18: =+IF(B18="","",IF(B18=$AA$32,D18+F18+H18+J18+L18+N18+P18+R18+T18,IF(B18=$AA$33,D18+F18+H18+J18+L18+N18+P18+R18+T18,IF(B18=$AA$34,D18+F18+H18+N18+P18+R18+T18,IF(B18=$AA$35,D18+F18+H18+N18+P18+R18+T18,SUM(D18,F18,H18,N18,P18)))))) ->  | W18: 0 | Z18: 17 | AA18: Pasaporte
C19: =IF(B19="","",VLOOKUP(B19,TARIFAS!$B$49:$C$81,2,0)) ->  | E19: =IF(B19="","",VLOOKUP(B19,TARIFAS!$B$51:$W$81,3,0)) ->  | G19: =IF(B19="","",VLOOKUP(B19,TARIFAS!$B$51:$W$81,8,0)) ->  | I19: =IF(B19="","",VLOOKUP(B19,TARIFAS!$B$51:$W$81,12,0)) ->  | K19: =IF(B19="","",VLOOKUP(B19,TARIFAS!$B$51:$W$81,14,0)) ->  | M19: =IF(B19="","",VLOOKUP(B19,TARIFAS!$B$51:$W$81,15,0)) ->  | O19: =IF(B19="","",VLOOKUP(B19,TARIFAS!$B$51:$W$81,16,0)) ->  | Q19: =IF(B19="","",VLOOKUP(B19,TARIFAS!$B$51:$W$81,18,0)) ->  | S19: =IF(B19="","",VLOOKUP(B19,TARIFAS!$B$51:$W$81,21,0)) ->  | U19: =IF(B19="","",VLOOKUP(B19,TARIFAS!$B$51:$W$81,22,0)) ->  | W19: 0 | Z19: 18 | AA19: Cedula de Ciudadania
C20: =IF(B20="","",VLOOKUP(B20,TARIFAS!$B$49:$C$81,2,0)) ->  | E20: =IF(B20="","",VLOOKUP(B20,TARIFAS!$B$51:$W$81,3,0)) ->  | G20: =IF(B20="","",VLOOKUP(B20,TARIFAS!$B$51:$W$81,8,0)) ->  | I20: =IF(B20="","",VLOOKUP(B20,TARIFAS!$B$51:$W$81,12,0)) ->  | K20: =IF(B20="","",VLOOKUP(B20,TARIFAS!$B$51:$W$81,14,0)) ->  | M20: =IF(B20="","",VLOOKUP(B20,TARIFAS!$B$51:$W$81,15,0)) ->  | O20: =IF(B20="","",VLOOKUP(B20,TARIFAS!$B$51:$W$81,16,0)) ->  | Q20: =IF(B20="","",VLOOKUP(B20,TARIFAS!$B$51:$W$81,18,0)) ->  | S20: =IF(B20="","",VLOOKUP(B20,TARIFAS!$B$51:$W$81,21,0)) ->  | U20: =IF(B20="","",VLOOKUP(B20,TARIFAS!$B$51:$W$81,22,0)) ->  | W20: 0 | Z20: 19 | AA20: Cedula de Extranjeria
C21: =IF(B21="","",VLOOKUP(B21,TARIFAS!$B$49:$C$81,2,0)) ->  | E21: =IF(B21="","",VLOOKUP(B21,TARIFAS!$B$51:$W$81,3,0)) ->  | G21: =IF(B21="","",VLOOKUP(B21,TARIFAS!$B$51:$W$81,8,0)) ->  | I21: =IF(B21="","",VLOOKUP(B21,TARIFAS!$B$51:$W$81,12,0)) ->  | K21: =IF(B21="","",VLOOKUP(B21,TARIFAS!$B$51:$W$81,14,0)) ->  | M21: =IF(B21="","",VLOOKUP(B21,TARIFAS!$B$51:$W$81,15,0)) ->  | O21: =IF(B21="","",VLOOKUP(B21,TARIFAS!$B$51:$W$81,16,0)) ->  | Q21: =IF(B21="","",VLOOKUP(B21,TARIFAS!$B$51:$W$81,18,0)) ->  | S21: =IF(B21="","",VLOOKUP(B21,TARIFAS!$B$51:$W$81,21,0)) ->  | U21: =IF(B21="","",VLOOKUP(B21,TARIFAS!$B$51:$W$81,22,0)) ->  | W21: 0 | Z21: 20 | AA21: Otro
C22: =IF(B22="","",VLOOKUP(B22,TARIFAS!$B$49:$C$81,2,0)) ->  | E22: =IF(B22="","",VLOOKUP(B22,TARIFAS!$B$51:$W$81,3,0)) ->  | G22: =IF(B22="","",VLOOKUP(B22,TARIFAS!$B$51:$W$81,8,0)) ->  | I22: =IF(B22="","",VLOOKUP(B22,TARIFAS!$B$51:$W$81,12,0)) ->  | K22: =IF(B22="","",VLOOKUP(B22,TARIFAS!$B$51:$W$81,14,0)) ->  | M22: =IF(B22="","",VLOOKUP(B22,TARIFAS!$B$51:$W$81,15,0)) ->  | O22: =IF(B22="","",VLOOKUP(B22,TARIFAS!$B$51:$W$81,16,0)) ->  | Q22: =IF(B22="","",VLOOKUP(B22,TARIFAS!$B$51:$W$81,18,0)) ->  | S22: =IF(B22="","",VLOOKUP(B22,TARIFAS!$B$51:$W$81,21,0)) ->  | U22: =IF(B22="","",VLOOKUP(B22,TARIFAS!$B$51:$W$81,22,0)) ->  | W22: 0 | Z22: 21
C23: =IF(B23="","",VLOOKUP(B23,TARIFAS!$B$49:$C$81,2,0)) ->  | E23: =IF(B23="","",VLOOKUP(B23,TARIFAS!$B$51:$W$81,3,0)) ->  | G23: =IF(B23="","",VLOOKUP(B23,TARIFAS!$B$51:$W$81,8,0)) ->  | I23: =IF(B23="","",VLOOKUP(B23,TARIFAS!$B$51:$W$81,12,0)) ->  | K23: =IF(B23="","",VLOOKUP(B23,TARIFAS!$B$51:$W$81,14,0)) ->  | M23: =IF(B23="","",VLOOKUP(B23,TARIFAS!$B$51:$W$81,15,0)) ->  | O23: =IF(B23="","",VLOOKUP(B23,TARIFAS!$B$51:$W$81,16,0)) ->  | Q23: =IF(B23="","",VLOOKUP(B23,TARIFAS!$B$51:$W$81,18,0)) ->  | S23: =IF(B23="","",VLOOKUP(B23,TARIFAS!$B$51:$W$81,21,0)) ->  | U23: =IF(B23="","",VLOOKUP(B23,TARIFAS!$B$51:$W$81,22,0)) ->  | W23: 0 | Z23: 22 | AA23: ARCABUCO
C24: =IF(B24="","",VLOOKUP(B24,TARIFAS!$B$49:$C$81,2,0)) ->  | E24: =IF(B24="","",VLOOKUP(B24,TARIFAS!$B$51:$W$81,3,0)) ->  | G24: =IF(B24="","",VLOOKUP(B24,TARIFAS!$B$51:$W$81,8,0)) ->  | I24: =IF(B24="","",VLOOKUP(B24,TARIFAS!$B$51:$W$81,12,0)) ->  | K24: =IF(B24="","",VLOOKUP(B24,TARIFAS!$B$51:$W$81,14,0)) ->  | M24: =IF(B24="","",VLOOKUP(B24,TARIFAS!$B$51:$W$81,15,0)) ->  | O24: =IF(B24="","",VLOOKUP(B24,TARIFAS!$B$51:$W$81,16,0)) ->  | Q24: =IF(B24="","",VLOOKUP(B24,TARIFAS!$B$51:$W$81,18,0)) ->  | S24: =IF(B24="","",VLOOKUP(B24,TARIFAS!$B$51:$W$81,21,0)) ->  | U24: =IF(B24="","",VLOOKUP(B24,TARIFAS!$B$51:$W$81,22,0)) ->  | W24: 0 | Z24: 23 | AA24: BICENTENARIO
C25: =IF(B25="","",VLOOKUP(B25,TARIFAS!$B$49:$C$81,2,0)) ->  | E25: =IF(B25="","",VLOOKUP(B25,TARIFAS!$B$51:$W$81,3,0)) ->  | G25: =IF(B25="","",VLOOKUP(B25,TARIFAS!$B$51:$W$81,8,0)) ->  | I25: =IF(B25="","",VLOOKUP(B25,TARIFAS!$B$51:$W$81,12,0)) ->  | K25: =IF(B25="","",VLOOKUP(B25,TARIFAS!$B$51:$W$81,14,0)) ->  | M25: =IF(B25="","",VLOOKUP(B25,TARIFAS!$B$51:$W$81,15,0)) ->  | O25: =IF(B25="","",VLOOKUP(B25,TARIFAS!$B$51:$W$81,16,0)) ->  | Q25: =IF(B25="","",VLOOKUP(B25,TARIFAS!$B$51:$W$81,18,0)) ->  | S25: =IF(B25="","",VLOOKUP(B25,TARIFAS!$B$51:$W$81,21,0)) ->  | U25: =IF(B25="","",VLOOKUP(B25,TARIFAS!$B$51:$W$81,22,0)) ->  | W25: 0 | Z25: 24 | AA25: T. LA LINEA TOLIMA
C26: =IF(B26="","",VLOOKUP(B26,TARIFAS!$B$49:$C$81,2,0)) ->  | E26: =IF(B26="","",VLOOKUP(B26,TARIFAS!$B$51:$W$81,3,0)) ->  | G26: =IF(B26="","",VLOOKUP(B26,TARIFAS!$B$51:$W$81,8,0)) ->  | I26: =IF(B26="","",VLOOKUP(B26,TARIFAS!$B$51:$W$81,12,0)) ->  | K26: =IF(B26="","",VLOOKUP(B26,TARIFAS!$B$51:$W$81,14,0)) ->  | M26: =IF(B26="","",VLOOKUP(B26,TARIFAS!$B$51:$W$81,15,0)) ->  | O26: =IF(B26="","",VLOOKUP(B26,TARIFAS!$B$51:$W$81,16,0)) ->  | Q26: =IF(B26="","",VLOOKUP(B26,TARIFAS!$B$51:$W$81,18,0)) ->  | S26: =IF(B26="","",VLOOKUP(B26,TARIFAS!$B$51:$W$81,21,0)) ->  | U26: =IF(B26="","",VLOOKUP(B26,TARIFAS!$B$51:$W$81,22,0)) ->  | W26: 0 | Z26: 25 | AA26: T. LA LINEA QUINDIO
C27: =IF(B27="","",VLOOKUP(B27,TARIFAS!$B$49:$C$81,2,0)) ->  | E27: =IF(B27="","",VLOOKUP(B27,TARIFAS!$B$51:$W$81,3,0)) ->  | G27: =IF(B27="","",VLOOKUP(B27,TARIFAS!$B$51:$W$81,8,0)) ->  | I27: =IF(B27="","",VLOOKUP(B27,TARIFAS!$B$51:$W$81,12,0)) ->  | K27: =IF(B27="","",VLOOKUP(B27,TARIFAS!$B$51:$W$81,14,0)) ->  | M27: =IF(B27="","",VLOOKUP(B27,TARIFAS!$B$51:$W$81,15,0)) ->  | O27: =IF(B27="","",VLOOKUP(B27,TARIFAS!$B$51:$W$81,16,0)) ->  | Q27: =IF(B27="","",VLOOKUP(B27,TARIFAS!$B$51:$W$81,18,0)) ->  | S27: =IF(B27="","",VLOOKUP(B27,TARIFAS!$B$51:$W$81,21,0)) ->  | U27: =IF(B27="","",VLOOKUP(B27,TARIFAS!$B$51:$W$81,22,0)) ->  | W27: 0 | Z27: 26 | AA27: CANO
C28: =IF(B28="","",VLOOKUP(B28,TARIFAS!$B$49:$C$81,2,0)) ->  | E28: =IF(B28="","",VLOOKUP(B28,TARIFAS!$B$51:$W$81,3,0)) ->  | G28: =IF(B28="","",VLOOKUP(B28,TARIFAS!$B$51:$W$81,8,0)) ->  | I28: =IF(B28="","",VLOOKUP(B28,TARIFAS!$B$51:$W$81,12,0)) ->  | K28: =IF(B28="","",VLOOKUP(B28,TARIFAS!$B$51:$W$81,14,0)) ->  | M28: =IF(B28="","",VLOOKUP(B28,TARIFAS!$B$51:$W$81,15,0)) ->  | O28: =IF(B28="","",VLOOKUP(B28,TARIFAS!$B$51:$W$81,16,0)) ->  | Q28: =IF(B28="","",VLOOKUP(B28,TARIFAS!$B$51:$W$81,18,0)) ->  | S28: =IF(B28="","",VLOOKUP(B28,TARIFAS!$B$51:$W$81,21,0)) ->  | U28: =IF(B28="","",VLOOKUP(B28,TARIFAS!$B$51:$W$81,22,0)) ->  | W28: 0 | Z28: 27 | AA28: CARIMAGUA
C29: =IF(B29="","",VLOOKUP(B29,TARIFAS!$B$49:$C$81,2,0)) ->  | E29: =IF(B29="","",VLOOKUP(B29,TARIFAS!$B$51:$W$81,3,0)) ->  | G29: =IF(B29="","",VLOOKUP(B29,TARIFAS!$B$51:$W$81,8,0)) ->  | I29: =IF(B29="","",VLOOKUP(B29,TARIFAS!$B$51:$W$81,12,0)) ->  | K29: =IF(B29="","",VLOOKUP(B29,TARIFAS!$B$51:$W$81,14,0)) ->  | M29: =IF(B29="","",VLOOKUP(B29,TARIFAS!$B$51:$W$81,15,0)) ->  | O29: =IF(B29="","",VLOOKUP(B29,TARIFAS!$B$51:$W$81,16,0)) ->  | Q29: =IF(B29="","",VLOOKUP(B29,TARIFAS!$B$51:$W$81,18,0)) ->  | S29: =IF(B29="","",VLOOKUP(B29,TARIFAS!$B$51:$W$81,21,0)) ->  | U29: =IF(B29="","",VLOOKUP(B29,TARIFAS!$B$51:$W$81,22,0)) ->  | W29: 0 | Z29: 28 | AA29: EL CRUCERO
C30: =IF(B30="","",VLOOKUP(B30,TARIFAS!$B$49:$C$81,2,0)) ->  | E30: =IF(B30="","",VLOOKUP(B30,TARIFAS!$B$51:$W$81,3,0)) ->  | G30: =IF(B30="","",VLOOKUP(B30,TARIFAS!$B$51:$W$81,8,0)) ->  | I30: =IF(B30="","",VLOOKUP(B30,TARIFAS!$B$51:$W$81,12,0)) ->  | K30: =IF(B30="","",VLOOKUP(B30,TARIFAS!$B$51:$W$81,14,0)) ->  | M30: =IF(B30="","",VLOOKUP(B30,TARIFAS!$B$51:$W$81,15,0)) ->  | O30: =IF(B30="","",VLOOKUP(B30,TARIFAS!$B$51:$W$81,16,0)) ->  | Q30: =IF(B30="","",VLOOKUP(B30,TARIFAS!$B$51:$W$81,18,0)) ->  | S30: =IF(B30="","",VLOOKUP(B30,TARIFAS!$B$51:$W$81,21,0)) ->  | U30: =IF(B30="","",VLOOKUP(B30,TARIFAS!$B$51:$W$81,22,0)) ->  | W30: 0 | Z30: 29 | AA30: EL BORDO
C31: =IF(B31="","",VLOOKUP(B31,TARIFAS!$B$49:$C$81,2,0)) ->  | E31: =IF(B31="","",VLOOKUP(B31,TARIFAS!$B$51:$W$81,3,0)) ->  | G31: =IF(B31="","",VLOOKUP(B31,TARIFAS!$B$51:$W$81,8,0)) ->  | I31: =IF(B31="","",VLOOKUP(B31,TARIFAS!$B$51:$W$81,12,0)) ->  | K31: =IF(B31="","",VLOOKUP(B31,TARIFAS!$B$51:$W$81,14,0)) ->  | M31: =IF(B31="","",VLOOKUP(B31,TARIFAS!$B$51:$W$81,15,0)) ->  | O31: =IF(B31="","",VLOOKUP(B31,TARIFAS!$B$51:$W$81,16,0)) ->  | Q31: =IF(B31="","",VLOOKUP(B31,TARIFAS!$B$51:$W$81,18,0)) ->  | S31: =IF(B31="","",VLOOKUP(B31,TARIFAS!$B$51:$W$81,21,0)) ->  | U31: =IF(B31="","",VLOOKUP(B31,TARIFAS!$B$51:$W$81,22,0)) ->  | W31: 0 | Z31: 30 | AA31: LOS LLANOS
C32: =IF(B32="","",VLOOKUP(B32,TARIFAS!$B$49:$C$81,2,0)) ->  | E32: =IF(B32="","",VLOOKUP(B32,TARIFAS!$B$51:$W$81,3,0)) ->  | G32: =IF(B32="","",VLOOKUP(B32,TARIFAS!$B$51:$W$81,8,0)) ->  | I32: =IF(B32="","",VLOOKUP(B32,TARIFAS!$B$51:$W$81,12,0)) ->  | K32: =IF(B32="","",VLOOKUP(B32,TARIFAS!$B$51:$W$81,14,0)) ->  | M32: =IF(B32="","",VLOOKUP(B32,TARIFAS!$B$51:$W$81,15,0)) ->  | O32: =IF(B32="","",VLOOKUP(B32,TARIFAS!$B$51:$W$81,16,0)) ->  | Q32: =IF(B32="","",VLOOKUP(B32,TARIFAS!$B$51:$W$81,18,0)) ->  | S32: =IF(B32="","",VLOOKUP(B32,TARIFAS!$B$51:$W$81,21,0)) ->  | U32: =IF(B32="","",VLOOKUP(B32,TARIFAS!$B$51:$W$81,22,0)) ->  | W32: 0 | Z32: 31 | AA32: RIO BLANCO
C33: =IF(B33="","",VLOOKUP(B33,TARIFAS!$B$49:$C$81,2,0)) ->  | E33: =IF(B33="","",VLOOKUP(B33,TARIFAS!$B$51:$W$81,3,0)) ->  | G33: =IF(B33="","",VLOOKUP(B33,TARIFAS!$B$51:$W$81,8,0)) ->  | I33: =IF(B33="","",VLOOKUP(B33,TARIFAS!$B$51:$W$81,12,0)) ->  | K33: =IF(B33="","",VLOOKUP(B33,TARIFAS!$B$51:$W$81,14,0)) ->  | M33: =IF(B33="","",VLOOKUP(B33,TARIFAS!$B$51:$W$81,15,0)) ->  | O33: =IF(B33="","",VLOOKUP(B33,TARIFAS!$B$51:$W$81,16,0)) ->  | Q33: =IF(B33="","",VLOOKUP(B33,TARIFAS!$B$51:$W$81,18,0)) ->  | S33: =IF(B33="","",VLOOKUP(B33,TARIFAS!$B$51:$W$81,21,0)) ->  | U33: =IF(B33="","",VLOOKUP(B33,TARIFAS!$B$51:$W$81,22,0)) ->  | W33: 0 | Z33: 32 | AA33: RIO FRIO
C34: =IF(B34="","",VLOOKUP(B34,TARIFAS!$B$49:$C$81,2,0)) ->  | E34: =IF(B34="","",VLOOKUP(B34,TARIFAS!$B$51:$W$81,3,0)) ->  | G34: =IF(B34="","",VLOOKUP(B34,TARIFAS!$B$51:$W$81,8,0)) ->  | I34: =IF(B34="","",VLOOKUP(B34,TARIFAS!$B$51:$W$81,12,0)) ->  | K34: =IF(B34="","",VLOOKUP(B34,TARIFAS!$B$51:$W$81,14,0)) ->  | M34: =IF(B34="","",VLOOKUP(B34,TARIFAS!$B$51:$W$81,15,0)) ->  | O34: =IF(B34="","",VLOOKUP(B34,TARIFAS!$B$51:$W$81,16,0)) ->  | Q34: =IF(B34="","",VLOOKUP(B34,TARIFAS!$B$51:$W$81,18,0)) ->  | S34: =IF(B34="","",VLOOKUP(B34,TARIFAS!$B$51:$W$81,21,0)) ->  | U34: =IF(B34="","",VLOOKUP(B34,TARIFAS!$B$51:$W$81,22,0)) ->  | W34: 0 | Z34: 33 | AA34: SACHICA
C35: =IF(B35="","",VLOOKUP(B35,TARIFAS!$B$49:$C$81,2,0)) ->  | E35: =IF(B35="","",VLOOKUP(B35,TARIFAS!$B$51:$W$81,3,0)) ->  | G35: =IF(B35="","",VLOOKUP(B35,TARIFAS!$B$51:$W$81,8,0)) ->  | I35: =IF(B35="","",VLOOKUP(B35,TARIFAS!$B$51:$W$81,12,0)) ->  | K35: =IF(B35="","",VLOOKUP(B35,TARIFAS!$B$51:$W$81,14,0)) ->  | M35: =IF(B35="","",VLOOKUP(B35,TARIFAS!$B$51:$W$81,15,0)) ->  | O35: =IF(B35="","",VLOOKUP(B35,TARIFAS!$B$51:$W$81,16,0)) ->  | Q35: =IF(B35="","",VLOOKUP(B35,TARIFAS!$B$51:$W$81,18,0)) ->  | S35: =IF(B35="","",VLOOKUP(B35,TARIFAS!$B$51:$W$81,21,0)) ->  | U35: =IF(B35="","",VLOOKUP(B35,TARIFAS!$B$51:$W$81,22,0)) ->  | W35: 0 | Z35: 34 | AA35: SAN CLEMENTE
C36: =IF(B36="","",VLOOKUP(B36,TARIFAS!$B$49:$C$81,2,0)) ->  | E36: =IF(B36="","",VLOOKUP(B36,TARIFAS!$B$51:$W$81,3,0)) ->  | G36: =IF(B36="","",VLOOKUP(B36,TARIFAS!$B$51:$W$81,8,0)) ->  | I36: =IF(B36="","",VLOOKUP(B36,TARIFAS!$B$51:$W$81,12,0)) ->  | K36: =IF(B36="","",VLOOKUP(B36,TARIFAS!$B$51:$W$81,14,0)) ->  | M36: =IF(B36="","",VLOOKUP(B36,TARIFAS!$B$51:$W$81,15,0)) ->  | O36: =IF(B36="","",VLOOKUP(B36,TARIFAS!$B$51:$W$81,16,0)) ->  | Q36: =IF(B36="","",VLOOKUP(B36,TARIFAS!$B$51:$W$81,18,0)) ->  | S36: =IF(B36="","",VLOOKUP(B36,TARIFAS!$B$51:$W$81,21,0)) ->  | U36: =IF(B36="","",VLOOKUP(B36,TARIFAS!$B$51:$W$81,22,0)) ->  | W36: 0 | Z36: 35 | AA36: TORO
C37: =IF(B37="","",VLOOKUP(B37,TARIFAS!$B$49:$C$81,2,0)) ->  | E37: =IF(B37="","",VLOOKUP(B37,TARIFAS!$B$51:$W$81,3,0)) ->  | G37: =IF(B37="","",VLOOKUP(B37,TARIFAS!$B$51:$W$81,8,0)) ->  | I37: =IF(B37="","",VLOOKUP(B37,TARIFAS!$B$51:$W$81,12,0)) ->  | K37: =IF(B37="","",VLOOKUP(B37,TARIFAS!$B$51:$W$81,14,0)) ->  | M37: =IF(B37="","",VLOOKUP(B37,TARIFAS!$B$51:$W$81,15,0)) ->  | O37: =IF(B37="","",VLOOKUP(B37,TARIFAS!$B$51:$W$81,16,0)) ->  | Q37: =IF(B37="","",VLOOKUP(B37,TARIFAS!$B$51:$W$81,18,0)) ->  | S37: =IF(B37="","",VLOOKUP(B37,TARIFAS!$B$51:$W$81,21,0)) ->  | U37: =IF(B37="","",VLOOKUP(B37,TARIFAS!$B$51:$W$81,22,0)) ->  | W37: 0 | Z37: 36 | AA37: TARAZA
C38: =IF(B38="","",VLOOKUP(B38,TARIFAS!$B$49:$C$81,2,0)) ->  | E38: =IF(B38="","",VLOOKUP(B38,TARIFAS!$B$51:$W$81,3,0)) ->  | G38: =IF(B38="","",VLOOKUP(B38,TARIFAS!$B$51:$W$81,8,0)) ->  | I38: =IF(B38="","",VLOOKUP(B38,TARIFAS!$B$51:$W$81,12,0)) ->  | K38: =IF(B38="","",VLOOKUP(B38,TARIFAS!$B$51:$W$81,14,0)) ->  | M38: =IF(B38="","",VLOOKUP(B38,TARIFAS!$B$51:$W$81,15,0)) ->  | O38: =IF(B38="","",VLOOKUP(B38,TARIFAS!$B$51:$W$81,16,0)) ->  | Q38: =IF(B38="","",VLOOKUP(B38,TARIFAS!$B$51:$W$81,18,0)) ->  | S38: =IF(B38="","",VLOOKUP(B38,TARIFAS!$B$51:$W$81,21,0)) ->  | U38: =IF(B38="","",VLOOKUP(B38,TARIFAS!$B$51:$W$81,22,0)) ->  | W38: 0 | Z38: 37 | AA38: CASABLANCA
C39: =IF(B39="","",VLOOKUP(B39,TARIFAS!$B$49:$C$81,2,0)) ->  | E39: =IF(B39="","",VLOOKUP(B39,TARIFAS!$B$51:$W$81,3,0)) ->  | G39: =IF(B39="","",VLOOKUP(B39,TARIFAS!$B$51:$W$81,8,0)) ->  | I39: =IF(B39="","",VLOOKUP(B39,TARIFAS!$B$51:$W$81,12,0)) ->  | K39: =IF(B39="","",VLOOKUP(B39,TARIFAS!$B$51:$W$81,14,0)) ->  | M39: =IF(B39="","",VLOOKUP(B39,TARIFAS!$B$51:$W$81,15,0)) ->  | O39: =IF(B39="","",VLOOKUP(B39,TARIFAS!$B$51:$W$81,16,0)) ->  | Q39: =IF(B39="","",VLOOKUP(B39,TARIFAS!$B$51:$W$81,18,0)) ->  | S39: =IF(B39="","",VLOOKUP(B39,TARIFAS!$B$51:$W$81,21,0)) ->  | U39: =IF(B39="","",VLOOKUP(B39,TARIFAS!$B$51:$W$81,22,0)) ->  | W39: 0 | Z39: 38 | AA39: SABOYÁ
A40: =IF(A39<1,"",IF(B40="","",A39+1)) ->  | C40: =IF(B40="","",VLOOKUP(B40,TARIFAS!$B$49:$C$81,2,0)) ->  | E40: =IF(B40="","",VLOOKUP(B40,TARIFAS!$B$51:$W$81,3,0)) ->  | G40: =IF(B40="","",VLOOKUP(B40,TARIFAS!$B$51:$W$81,8,0)) ->  | I40: =IF(B40="","",VLOOKUP(B40,TARIFAS!$B$51:$W$81,12,0)) ->  | K40: =IF(B40="","",VLOOKUP(B40,TARIFAS!$B$51:$W$81,14,0)) ->  | M40: =IF(B40="","",VLOOKUP(B40,TARIFAS!$B$51:$W$81,15,0)) ->  | O40: =IF(B40="","",VLOOKUP(B40,TARIFAS!$B$51:$W$81,16,0)) ->  | Q40: =IF(B40="","",VLOOKUP(B40,TARIFAS!$B$51:$W$81,18,0)) ->  | S40: =IF(B40="","",VLOOKUP(B40,TARIFAS!$B$51:$W$81,21,0)) ->  | U40: =IF(B40="","",VLOOKUP(B40,TARIFAS!$B$51:$W$81,22,0)) ->  | W40: 0 | Z40: 39 | AA40: OIBA
C41: =IF(B41="","",VLOOKUP(B41,TARIFAS!$B$49:$C$81,2,0)) ->  | E41: =IF(B41="","",VLOOKUP(B41,TARIFAS!$B$51:$W$81,3,0)) ->  | G41: =IF(B41="","",VLOOKUP(B41,TARIFAS!$B$51:$W$81,8,0)) ->  | I41: =IF(B41="","",VLOOKUP(B41,TARIFAS!$B$51:$W$81,12,0)) ->  | K41: =IF(B41="","",VLOOKUP(B41,TARIFAS!$B$51:$W$81,14,0)) ->  | M41: =IF(B41="","",VLOOKUP(B41,TARIFAS!$B$51:$W$81,15,0)) ->  | O41: =IF(B41="","",VLOOKUP(B41,TARIFAS!$B$51:$W$81,16,0)) ->  | Q41: =IF(B41="","",VLOOKUP(B41,TARIFAS!$B$51:$W$81,18,0)) ->  | S41: =IF(B41="","",VLOOKUP(B41,TARIFAS!$B$51:$W$81,21,0)) ->  | U41: =IF(B41="","",VLOOKUP(B41,TARIFAS!$B$51:$W$81,22,0)) ->  | W41: 0 | Z41: 40 | AA41: CURITI
C42: =IF(B42="","",VLOOKUP(B42,TARIFAS!$B$49:$C$81,2,0)) ->  | E42: =IF(B42="","",VLOOKUP(B42,TARIFAS!$B$51:$W$81,3,0)) ->  | G42: =IF(B42="","",VLOOKUP(B42,TARIFAS!$B$51:$W$81,8,0)) ->  | I42: =IF(B42="","",VLOOKUP(B42,TARIFAS!$B$51:$W$81,12,0)) ->  | K42: =IF(B42="","",VLOOKUP(B42,TARIFAS!$B$51:$W$81,14,0)) ->  | M42: =IF(B42="","",VLOOKUP(B42,TARIFAS!$B$51:$W$81,15,0)) ->  | O42: =IF(B42="","",VLOOKUP(B42,TARIFAS!$B$51:$W$81,16,0)) ->  | Q42: =IF(B42="","",VLOOKUP(B42,TARIFAS!$B$51:$W$81,18,0)) ->  | S42: =IF(B42="","",VLOOKUP(B42,TARIFAS!$B$51:$W$81,21,0)) ->  | U42: =IF(B42="","",VLOOKUP(B42,TARIFAS!$B$51:$W$81,22,0)) ->  | W42: 0 | Z42: 41 | AA42: LOS CUROS
C43: =IF(B43="","",VLOOKUP(B43,TARIFAS!$B$49:$C$81,2,0)) ->  | E43: =IF(B43="","",VLOOKUP(B43,TARIFAS!$B$51:$W$81,3,0)) ->  | G43: =IF(B43="","",VLOOKUP(B43,TARIFAS!$B$51:$W$81,8,0)) ->  | I43: =IF(B43="","",VLOOKUP(B43,TARIFAS!$B$51:$W$81,12,0)) ->  | K43: =IF(B43="","",VLOOKUP(B43,TARIFAS!$B$51:$W$81,14,0)) ->  | M43: =IF(B43="","",VLOOKUP(B43,TARIFAS!$B$51:$W$81,15,0)) ->  | O43: =IF(B43="","",VLOOKUP(B43,TARIFAS!$B$51:$W$81,16,0)) ->  | Q43: =IF(B43="","",VLOOKUP(B43,TARIFAS!$B$51:$W$81,18,0)) ->  | S43: =IF(B43="","",VLOOKUP(B43,TARIFAS!$B$51:$W$81,21,0)) ->  | U43: =IF(B43="","",VLOOKUP(B43,TARIFAS!$B$51:$W$81,22,0)) ->  | W43: 0 | Z43: 42 | AA43: PLATANAL
C44: =IF(B44="","",VLOOKUP(B44,TARIFAS!$B$49:$C$81,2,0)) ->  | E44: =IF(B44="","",VLOOKUP(B44,TARIFAS!$B$51:$W$81,3,0)) ->  | G44: =IF(B44="","",VLOOKUP(B44,TARIFAS!$B$51:$W$81,8,0)) ->  | I44: =IF(B44="","",VLOOKUP(B44,TARIFAS!$B$51:$W$81,12,0)) ->  | K44: =IF(B44="","",VLOOKUP(B44,TARIFAS!$B$51:$W$81,14,0)) ->  | M44: =IF(B44="","",VLOOKUP(B44,TARIFAS!$B$51:$W$81,15,0)) ->  | O44: =IF(B44="","",VLOOKUP(B44,TARIFAS!$B$51:$W$81,16,0)) ->  | Q44: =IF(B44="","",VLOOKUP(B44,TARIFAS!$B$51:$W$81,18,0)) ->  | S44: =IF(B44="","",VLOOKUP(B44,TARIFAS!$B$51:$W$81,21,0)) ->  | U44: =IF(B44="","",VLOOKUP(B44,TARIFAS!$B$51:$W$81,22,0)) ->  | W44: 0 | Z44: 43 | AA44: SAN DIEGO
C45: =IF(B45="","",VLOOKUP(B45,TARIFAS!$B$49:$C$81,2,0)) ->  | E45: =IF(B45="","",VLOOKUP(B45,TARIFAS!$B$51:$W$81,3,0)) ->  | G45: =IF(B45="","",VLOOKUP(B45,TARIFAS!$B$51:$W$81,8,0)) ->  | I45: =IF(B45="","",VLOOKUP(B45,TARIFAS!$B$51:$W$81,12,0)) ->  | K45: =IF(B45="","",VLOOKUP(B45,TARIFAS!$B$51:$W$81,14,0)) ->  | M45: =IF(B45="","",VLOOKUP(B45,TARIFAS!$B$51:$W$81,15,0)) ->  | O45: =IF(B45="","",VLOOKUP(B45,TARIFAS!$B$51:$W$81,16,0)) ->  | Q45: =IF(B45="","",VLOOKUP(B45,TARIFAS!$B$51:$W$81,18,0)) ->  | S45: =IF(B45="","",VLOOKUP(B45,TARIFAS!$B$51:$W$81,21,0)) ->  | U45: =IF(B45="","",VLOOKUP(B45,TARIFAS!$B$51:$W$81,22,0)) ->  | W45: 0 | Z45: 44 | AA45: RINCÓN HONDO
C46: TOTAL | D46: =SUM(D16:D45) -> 0 | F46: =SUM(F16:F45) -> 0 | H46: =SUM(H16:H45) -> 0 | J46: =SUM(J16:J45) -> 0 | L46: =SUM(L16:L45) -> 0 | N46: =SUM(N16:N45) -> 0 | P46: =SUM(P16:P45) -> 0 | R46: =SUM(R16:R45) -> 0 | T46: =SUM(T16:T45) -> 0 | V46: =SUM(V16:V45) -> 0 | W46: =SUM(W16:W45) -> 0 | Z46: 45 | AA46: SAN JUAN
Z47: 46 | AA47: COCORNA
Z48: 47 | AA48: PUERTO TRIUNFO
Z49: 48 | AA49: CERRITOS II
Z50: 49 | AA50: LA PARADA
Z51: =+Z47+1 -> 47 | AA51: EL KORAN
Z52: 48 | AA52: RIO BOGOTA
Z53: 49 | AA53: CORZO
Z54: 50
Z55: 51
Z56: 52
Z57: 53
Z58: 54
Z59: 55
Z60: 56
Z61: 57
Z62: 58
Z63: 59
Z64: 60
Z65: 61
Z66: 62
Z67: 63
Z68: 64
Z69: 65
Z70: 66
Z71: =+Z70+1 -> 67
Z72: 68
Z73: 69
Z74: 70
Z75: 71
Z76: 72
Z77: 73
Z78: 74
Z79: 75
Z80: 76
Z81: 77
Z82: 78
Z83: 79
Z84: 80
Z85: 81
Z86: 82
Z87: 83
Z88: 84
Z89: 85
Z90: 86
Z91: 87
Z92: 88
Z93: 89
Z94: 90
Z95: 91
Z96: 92
Z97: 93
Z98: 94
Z99: 95
Z100: 96
Z101: 97
Z102: 98
Z103: 99
Z104: 100
Z105: 101
Z106: 102
Z107: 103
Z108: 104
Z109: 105
Z110: 106
Z111: 107
Z112: 108
Z113: 109
Z114: 110
Z115: 111
Z116: 112
Z117: 113
Z118: 114
Z119: 115
Z120: 116
Z121: 117
Z122: 118
Z123: 119
Z124: 120
Z125: 121
Z126: 122
Z127: 123
Z128: 124
Z129: 125
Z130: 126
Z131: 127
Z132: 128
Z133: 129
Z134: 130
Z135: =+Z134+1 -> 131
Z136: 132
Z137: 133
Z138: 134
Z139: 135
Z140: 136
Z141: 137
Z142: 138
Z143: 139
Z144: 140
Z145: 141
Z146: 142
Z147: 143
Z148: 144
Z149: 145
Z150: 146
Z151: 147
Z152: 148
Z153: 149
Z154: 150
Z155: 151
Z156: 152
Z157: 153
Z158: 154
Z159: 155
Z160: 156
Z161: 157
Z162: 158
Z163: 159
Z164: 160
Z165: 161
Z166: 162
Z167: 163
Z168: 164
Z169: 165
Z170: 166
Z171: 167
Z172: 168
Z173: 169
Z174: 170
Z175: 171
Z176: 172
Z177: 173
Z178: 174
Z179: 175
Z180: 176
Z181: 177
Z182: 178
Z183: 179
Z184: 180
Z185: 181
Z186: 182
Z187: 183
Z188: 184
Z189: 185
Z190: 186
Z191: 187
Z192: 188
Z193: 189
Z194: 190
Z195: 191
Z196: 192
Z197: 193
Z198: 194
Z199: =+Z198+1 -> 195
Z200: 196
Z201: 197
... 1803 more rows

Sheet LIQUIDACION
B2: F-GF-020 FORMATO LIQUIDACIÓN COMPRA
B3: TIQUETES PREPAGO
B4: VERSIÓN 005
B5: FECHA : 01/04/2024
B7: Fecha: | C7: =+IF(FORMULARIO!C7="","",FORMULARIO!C7) -> 
B9: Nombre del Cliente | C9: =+IF(FORMULARIO!C9="","",FORMULARIO!C9) -> 
B11: Documento de identidad | C11: =+IF(FORMULARIO!N9="","",FORMULARIO!N9) ->  | K11: No. | L11: =+IF(FORMULARIO!V9="","",FORMULARIO!V9) -> 
B13: Direccion de envio Tiquetes | C13: =+IF(FORMULARIO!D11="","",FORMULARIO!D11) -> 
B15: Ciudad | C15: =+IF(FORMULARIO!N11="","",FORMULARIO!N11) ->  | K15: Departamento | N15: =+IF(FORMULARIO!V11="","",FORMULARIO!V11) -> 
B16: Contacto | C16: =+IF(FORMULARIO!D12="","",FORMULARIO!D12) -> 
B17: N° Celular contacto | C17: =+IF(FORMULARIO!D13="","",FORMULARIO!D13) -> 
B18: E_MAIL | C18: =+IF(FORMULARIO!N13="","",FORMULARIO!N13) -> 
A20: No. | B20: PEAJE | C20: CATEGORÍAS VEHICULARES | N20: CANTIDAD | O20: VALOR
C21: I | D21: II | E21: III | F21: IIIP | G21: IIIG | H21: IV | I21: V | J21: VI | K21: VII | N21: TIQUETES
A22: =+FORMULARIO!A16 -> 1 | B22: =+IF(FORMULARIO!B16="","",FORMULARIO!B16) -> RIO BOGOTA | C22: =+IF(B22="","",IF(FORMULARIO!D16="","",IF(B22=$W$33,"",FORMULARIO!D16))) ->  | D22: =+IF(B22="","",IF(FORMULARIO!F16="","",FORMULARIO!F16)) ->  | E22: =+IF(B22="","",IF(FORMULARIO!H16="","",FORMULARIO!H16)) ->  | F22: =+IF(B22="","",IF(FORMULARIO!J16="","",FORMULARIO!J16)) ->  | G22: =+IF(B22="","",IF(FORMULARIO!L16="","",FORMULARIO!L16)) ->  | H22: =+IF(B22="","",IF(FORMULARIO!N16="","",FORMULARIO!N16)) ->  | I22: =+IF(B22="","",IF(FORMULARIO!P16="","",FORMULARIO!P16)) ->  | J22: =+IF(B22="","",IF(FORMULARIO!R16="","",IF(B22=$W$22,"",IF(B22=$W$23,"",IF(B22=$W$24,"",IF(B22=$W$25,"",IF(B22=$W$26,"",IF(B22=$W$27,"",IF(B22=$W$28,"",IF(B22=$W$29,"",IF(B22=$W$30,"",IF(B22=$W$31,"",IF(B22=$W$32,"",IF(B22=$W$33,"",IF(B22=$W$34,"",FORMULARIO!R16))))))))))))))) ->  | K22: =+IF(B22="","",IF(FORMULARIO!T16="","",IF(B22=$W$22,"",IF(B22=$W$23,"",IF(B22=$W$24,"",IF(B22=$W$25,"",IF(B22=$W$26,"",IF(B22=$W$27,"",IF(B22=$W$28,"",IF(B22=$W$29,"",IF(B22=$W$30,"",IF(B22=$W$31,"",IF(B22=$W$32,"",IF(B22=$W$33,"",IF(B22=$W$34,"",FORMULARIO!T16))))))))))))))) ->  | N22: =SUM(C22:K22) -> 0 | O22: =FORMULARIO!W16 -> 0 | W22: CASABLANCA
A23: =+FORMULARIO!A17 ->  | B23: =+IF(FORMULARIO!B17="","",FORMULARIO!B17) ->  | C23: =+IF(B23="","",IF(FORMULARIO!D17="","",IF(B23=$W$33,"",FORMULARIO!D17))) ->  | D23: =+IF(B23="","",IF(FORMULARIO!F17="","",FORMULARIO!F17)) ->  | E23: =+IF(B23="","",IF(FORMULARIO!H17="","",FORMULARIO!H17)) ->  | F23: =+IF(B23="","",IF(FORMULARIO!J17="","",FORMULARIO!J17)) ->  | G23: =+IF(B23="","",IF(FORMULARIO!L17="","",FORMULARIO!L17)) ->  | H23: =+IF(B23="","",IF(FORMULARIO!N17="","",FORMULARIO!N17)) ->  | I23: =+IF(B23="","",IF(FORMULARIO!P17="","",FORMULARIO!P17)) ->  | J23: =+IF(B23="","",IF(FORMULARIO!R17="","",IF(B23=$W$22,"",IF(B23=$W$23,"",IF(B23=$W$24,"",IF(B23=$W$25,"",IF(B23=$W$26,"",IF(B23=$W$27,"",IF(B23=$W$28,"",IF(B23=$W$29,"",IF(B23=$W$30,"",IF(B23=$W$31,"",IF(B23=$W$32,"",IF(B23=$W$33,"",IF(B23=$W$34,"",FORMULARIO!R17))))))))))))))) ->  | K23: =+IF(B23="","",IF(FORMULARIO!T17="","",IF(B23=$W$22,"",IF(B23=$W$23,"",IF(B23=$W$24,"",IF(B23=$W$25,"",IF(B23=$W$26,"",IF(B23=$W$27,"",IF(B23=$W$28,"",IF(B23=$W$29,"",IF(B23=$W$30,"",IF(B23=$W$31,"",IF(B23=$W$32,"",IF(B23=$W$33,"",IF(B23=$W$34,"",FORMULARIO!T17))))))))))))))) ->  | N23: =SUM(C23:K23) -> 0 | O23: =FORMULARIO!W17 -> 0 | W23: SABOYÁ
A24: =+FORMULARIO!A18 ->  | B24: =+IF(FORMULARIO!B18="","",FORMULARIO!B18) ->  | C24: =+IF(B24="","",IF(FORMULARIO!D18="","",IF(B24=$W$33,"",FORMULARIO!D18))) ->  | D24: =+IF(B24="","",IF(FORMULARIO!F18="","",FORMULARIO!F18)) ->  | E24: =+IF(B24="","",IF(FORMULARIO!H18="","",FORMULARIO!H18)) ->  | F24: =+IF(B24="","",IF(FORMULARIO!J18="","",FORMULARIO!J18)) ->  | G24: =+IF(B24="","",IF(FORMULARIO!L18="","",FORMULARIO!L18)) ->  | H24: =+IF(B24="","",IF(FORMULARIO!N18="","",FORMULARIO!N18)) ->  | I24: =+IF(B24="","",IF(FORMULARIO!P18="","",FORMULARIO!P18)) ->  | J24: =+IF(B24="","",IF(FORMULARIO!R18="","",IF(B24=$W$22,"",IF(B24=$W$23,"",IF(B24=$W$24,"",IF(B24=$W$25,"",IF(B24=$W$26,"",IF(B24=$W$27,"",IF(B24=$W$28,"",IF(B24=$W$29,"",IF(B24=$W$30,"",IF(B24=$W$31,"",IF(B24=$W$32,"",IF(B24=$W$33,"",IF(B24=$W$34,"",FORMULARIO!R18))))))))))))))) ->  | K24: =+IF(B24="","",IF(FORMULARIO!T18="","",IF(B24=$W$22,"",IF(B24=$W$23,"",IF(B24=$W$24,"",IF(B24=$W$25,"",IF(B24=$W$26,"",IF(B24=$W$27,"",IF(B24=$W$28,"",IF(B24=$W$29,"",IF(B24=$W$30,"",IF(B24=$W$31,"",IF(B24=$W$32,"",IF(B24=$W$33,"",IF(B24=$W$34,"",FORMULARIO!T18))))))))))))))) ->  | N24: 0 | O24: =FORMULARIO!W18 -> 0 | W24: OIBA
A25: =+FORMULARIO!A19 ->  | B25: =+IF(FORMULARIO!B19="","",FORMULARIO!B19) ->  | C25: =+IF(B25="","",IF(FORMULARIO!D19="","",IF(B25=$W$33,"",FORMULARIO!D19))) ->  | D25: =+IF(B25="","",IF(FORMULARIO!F19="","",FORMULARIO!F19)) ->  | E25: =+IF(B25="","",IF(FORMULARIO!H19="","",FORMULARIO!H19)) ->  | F25: =+IF(B25="","",IF(FORMULARIO!J19="","",FORMULARIO!J19)) ->  | G25: =+IF(B25="","",IF(FORMULARIO!L19="","",FORMULARIO!L19)) ->  | H25: =+IF(B25="","",IF(FORMULARIO!N19="","",FORMULARIO!N19)) ->  | I25: =+IF(B25="","",IF(FORMULARIO!P19="","",FORMULARIO!P19)) ->  | J25: =+IF(B25="","",IF(FORMULARIO!R19="","",IF(B25=$W$22,"",IF(B25=$W$23,"",IF(B25=$W$24,"",IF(B25=$W$25,"",IF(B25=$W$26,"",IF(B25=$W$27,"",IF(B25=$W$28,"",IF(B25=$W$29,"",IF(B25=$W$30,"",IF(B25=$W$31,"",IF(B25=$W$32,"",IF(B25=$W$33,"",IF(B25=$W$34,"",FORMULARIO!R19))))))))))))))) ->  | K25: =+IF(B25="","",IF(FORMULARIO!T19="","",IF(B25=$W$22,"",IF(B25=$W$23,"",IF(B25=$W$24,"",IF(B25=$W$25,"",IF(B25=$W$26,"",IF(B25=$W$27,"",IF(B25=$W$28,"",IF(B25=$W$29,"",IF(B25=$W$30,"",IF(B25=$W$31,"",IF(B25=$W$32,"",IF(B25=$W$33,"",IF(B25=$W$34,"",FORMULARIO!T19))))))))))))))) ->  | N25: 0 | O25: =FORMULARIO!W19 -> 0 | W25: CURITI
A26: =+FORMULARIO!A20 ->  | B26: =+IF(FORMULARIO!B20="","",FORMULARIO!B20) ->  | C26: =+IF(B26="","",IF(FORMULARIO!D20="","",IF(B26=$W$33,"",FORMULARIO!D20))) ->  | D26: =+IF(B26="","",IF(FORMULARIO!F20="","",FORMULARIO!F20)) ->  | E26: =+IF(B26="","",IF(FORMULARIO!H20="","",FORMULARIO!H20)) ->  | F26: =+IF(B26="","",IF(FORMULARIO!J20="","",FORMULARIO!J20)) ->  | G26: =+IF(B26="","",IF(FORMULARIO!L20="","",FORMULARIO!L20)) ->  | H26: =+IF(B26="","",IF(FORMULARIO!N20="","",FORMULARIO!N20)) ->  | I26: =+IF(B26="","",IF(FORMULARIO!P20="","",FORMULARIO!P20)) ->  | J26: =+IF(B26="","",IF(FORMULARIO!R20="","",IF(B26=$W$22,"",IF(B26=$W$23,"",IF(B26=$W$24,"",IF(B26=$W$25,"",IF(B26=$W$26,"",IF(B26=$W$27,"",IF(B26=$W$28,"",IF(B26=$W$29,"",IF(B26=$W$30,"",IF(B26=$W$31,"",IF(B26=$W$32,"",IF(B26=$W$33,"",IF(B26=$W$34,"",FORMULARIO!R20))))))))))))))) ->  | K26: =+IF(B26="","",IF(FORMULARIO!T20="","",IF(B26=$W$22,"",IF(B26=$W$23,"",IF(B26=$W$24,"",IF(B26=$W$25,"",IF(B26=$W$26,"",IF(B26=$W$27,"",IF(B26=$W$28,"",IF(B26=$W$29,"",IF(B26=$W$30,"",IF(B26=$W$31,"",IF(B26=$W$32,"",IF(B26=$W$33,"",IF(B26=$W$34,"",FORMULARIO!T20))))))))))))))) ->  | N26: 0 | O26: =FORMULARIO!W20 -> 0 | W26: LOS CUROS
A27: =+FORMULARIO!A21 ->  | B27: =+IF(FORMULARIO!B21="","",FORMULARIO!B21) ->  | C27: =+IF(B27="","",IF(FORMULARIO!D21="","",IF(B27=$W$33,"",FORMULARIO!D21))) ->  | D27: =+IF(B27="","",IF(FORMULARIO!F21="","",FORMULARIO!F21)) ->  | E27: =+IF(B27="","",IF(FORMULARIO!H21="","",FORMULARIO!H21)) ->  | F27: =+IF(B27="","",IF(FORMULARIO!J21="","",FORMULARIO!J21)) ->  | G27: =+IF(B27="","",IF(FORMULARIO!L21="","",FORMULARIO!L21)) ->  | H27: =+IF(B27="","",IF(FORMULARIO!N21="","",FORMULARIO!N21)) ->  | I27: =+IF(B27="","",IF(FORMULARIO!P21="","",FORMULARIO!P21)) ->  | J27: =+IF(B27="","",IF(FORMULARIO!R21="","",IF(B27=$W$22,"",IF(B27=$W$23,"",IF(B27=$W$24,"",IF(B27=$W$25,"",IF(B27=$W$26,"",IF(B27=$W$27,"",IF(B27=$W$28,"",IF(B27=$W$29,"",IF(B27=$W$30,"",IF(B27=$W$31,"",IF(B27=$W$32,"",IF(B27=$W$33,"",IF(B27=$W$34,"",FORMULARIO!R21))))))))))))))) ->  | K27: =+IF(B27="","",IF(FORMULARIO!T21="","",IF(B27=$W$22,"",IF(B27=$W$23,"",IF(B27=$W$24,"",IF(B27=$W$25,"",IF(B27=$W$26,"",IF(B27=$W$27,"",IF(B27=$W$28,"",IF(B27=$W$29,"",IF(B27=$W$30,"",IF(B27=$W$31,"",IF(B27=$W$32,"",IF(B27=$W$33,"",IF(B27=$W$34,"",FORMULARIO!T21))))))))))))))) ->  | N27: 0 | O27: =FORMULARIO!W21 -> 0 | W27: AGUAS NEGRAS
A28: =+FORMULARIO!A22 ->  | B28: =+IF(FORMULARIO!B22="","",FORMULARIO!B22) ->  | C28: =+IF(B28="","",IF(FORMULARIO!D22="","",IF(B28=$W$33,"",FORMULARIO!D22))) ->  | D28: =+IF(B28="","",IF(FORMULARIO!F22="","",FORMULARIO!F22)) ->  | E28: =+IF(B28="","",IF(FORMULARIO!H22="","",FORMULARIO!H22)) ->  | F28: =+IF(B28="","",IF(FORMULARIO!J22="","",FORMULARIO!J22)) ->  | G28: =+IF(B28="","",IF(FORMULARIO!L22="","",FORMULARIO!L22)) ->  | H28: =+IF(B28="","",IF(FORMULARIO!N22="","",FORMULARIO!N22)) ->  | I28: =+IF(B28="","",IF(FORMULARIO!P22="","",FORMULARIO!P22)) ->  | J28: =+IF(B28="","",IF(FORMULARIO!R22="","",IF(B28=$W$22,"",IF(B28=$W$23,"",IF(B28=$W$24,"",IF(B28=$W$25,"",IF(B28=$W$26,"",IF(B28=$W$27,"",IF(B28=$W$28,"",IF(B28=$W$29,"",IF(B28=$W$30,"",IF(B28=$W$31,"",IF(B28=$W$32,"",IF(B28=$W$33,"",IF(B28=$W$34,"",FORMULARIO!R22))))))))))))))) ->  | K28: =+IF(B28="","",IF(FORMULARIO!T22="","",IF(B28=$W$22,"",IF(B28=$W$23,"",IF(B28=$W$24,"",IF(B28=$W$25,"",IF(B28=$W$26,"",IF(B28=$W$27,"",IF(B28=$W$28,"",IF(B28=$W$29,"",IF(B28=$W$30,"",IF(B28=$W$31,"",IF(B28=$W$32,"",IF(B28=$W$33,"",IF(B28=$W$34,"",FORMULARIO!T22))))))))))))))) ->  | N28: 0 | O28: =FORMULARIO!W22 -> 0 | W28: LA GOMEZ
A29: =+FORMULARIO!A23 ->  | B29: =+IF(FORMULARIO!B23="","",FORMULARIO!B23) ->  | C29: =+IF(B29="","",IF(FORMULARIO!D23="","",IF(B29=$W$33,"",FORMULARIO!D23))) ->  | D29: =+IF(B29="","",IF(FORMULARIO!F23="","",FORMULARIO!F23)) ->  | E29: =+IF(B29="","",IF(FORMULARIO!H23="","",FORMULARIO!H23)) ->  | F29: =+IF(B29="","",IF(FORMULARIO!J23="","",FORMULARIO!J23)) ->  | G29: =+IF(B29="","",IF(FORMULARIO!L23="","",FORMULARIO!L23)) ->  | H29: =+IF(B29="","",IF(FORMULARIO!N23="","",FORMULARIO!N23)) ->  | I29: =+IF(B29="","",IF(FORMULARIO!P23="","",FORMULARIO!P23)) ->  | J29: =+IF(B29="","",IF(FORMULARIO!R23="","",IF(B29=$W$22,"",IF(B29=$W$23,"",IF(B29=$W$24,"",IF(B29=$W$25,"",IF(B29=$W$26,"",IF(B29=$W$27,"",IF(B29=$W$28,"",IF(B29=$W$29,"",IF(B29=$W$30,"",IF(B29=$W$31,"",IF(B29=$W$32,"",IF(B29=$W$33,"",IF(B29=$W$34,"",FORMULARIO!R23))))))))))))))) ->  | K29: =+IF(B29="","",IF(FORMULARIO!T23="","",IF(B29=$W$22,"",IF(B29=$W$23,"",IF(B29=$W$24,"",IF(B29=$W$25,"",IF(B29=$W$26,"",IF(B29=$W$27,"",IF(B29=$W$28,"",IF(B29=$W$29,"",IF(B29=$W$30,"",IF(B29=$W$31,"",IF(B29=$W$32,"",IF(B29=$W$33,"",IF(B29=$W$34,"",FORMULARIO!T23))))))))))))))) ->  | N29: 0 | O29: =FORMULARIO!W23 -> 0 | W29: MORRISON
A30: =+FORMULARIO!A24 ->  | B30: =+IF(FORMULARIO!B24="","",FORMULARIO!B24) ->  | C30: =+IF(B30="","",IF(FORMULARIO!D24="","",IF(B30=$W$33,"",FORMULARIO!D24))) ->  | D30: =+IF(B30="","",IF(FORMULARIO!F24="","",FORMULARIO!F24)) ->  | E30: =+IF(B30="","",IF(FORMULARIO!H24="","",FORMULARIO!H24)) ->  | F30: =+IF(B30="","",IF(FORMULARIO!J24="","",FORMULARIO!J24)) ->  | G30: =+IF(B30="","",IF(FORMULARIO!L24="","",FORMULARIO!L24)) ->  | H30: =+IF(B30="","",IF(FORMULARIO!N24="","",FORMULARIO!N24)) ->  | I30: =+IF(B30="","",IF(FORMULARIO!P24="","",FORMULARIO!P24)) ->  | J30: =+IF(B30="","",IF(FORMULARIO!R24="","",IF(B30=$W$22,"",IF(B30=$W$23,"",IF(B30=$W$24,"",IF(B30=$W$25,"",IF(B30=$W$26,"",IF(B30=$W$27,"",IF(B30=$W$28,"",IF(B30=$W$29,"",IF(B30=$W$30,"",IF(B30=$W$31,"",IF(B30=$W$32,"",IF(B30=$W$33,"",IF(B30=$W$34,"",FORMULARIO!R24))))))))))))))) ->  | K30: =+IF(B30="","",IF(FORMULARIO!T24="","",IF(B30=$W$22,"",IF(B30=$W$23,"",IF(B30=$W$24,"",IF(B30=$W$25,"",IF(B30=$W$26,"",IF(B30=$W$27,"",IF(B30=$W$28,"",IF(B30=$W$29,"",IF(B30=$W$30,"",IF(B30=$W$31,"",IF(B30=$W$32,"",IF(B30=$W$33,"",IF(B30=$W$34,"",FORMULARIO!T24))))))))))))))) ->  | N30: 0 | O30: =FORMULARIO!W24 -> 0 | W30: PAILITAS
A31: =+FORMULARIO!A25 ->  | B31: =+IF(FORMULARIO!B25="","",FORMULARIO!B25) ->  | C31: =+IF(B31="","",IF(FORMULARIO!D25="","",IF(B31=$W$33,"",FORMULARIO!D25))) ->  | D31: =+IF(B31="","",IF(FORMULARIO!F25="","",FORMULARIO!F25)) ->  | E31: =+IF(B31="","",IF(FORMULARIO!H25="","",FORMULARIO!H25)) ->  | F31: =+IF(B31="","",IF(FORMULARIO!J25="","",FORMULARIO!J25)) ->  | G31: =+IF(B31="","",IF(FORMULARIO!L25="","",FORMULARIO!L25)) ->  | H31: =+IF(B31="","",IF(FORMULARIO!N25="","",FORMULARIO!N25)) ->  | I31: =+IF(B31="","",IF(FORMULARIO!P25="","",FORMULARIO!P25)) ->  | J31: =+IF(B31="","",IF(FORMULARIO!R25="","",IF(B31=$W$22,"",IF(B31=$W$23,"",IF(B31=$W$24,"",IF(B31=$W$25,"",IF(B31=$W$26,"",IF(B31=$W$27,"",IF(B31=$W$28,"",IF(B31=$W$29,"",IF(B31=$W$30,"",IF(B31=$W$31,"",IF(B31=$W$32,"",IF(B31=$W$33,"",IF(B31=$W$34,"",FORMULARIO!R25))))))))))))))) ->  | K31: =+IF(B31="","",IF(FORMULARIO!T25="","",IF(B31=$W$22,"",IF(B31=$W$23,"",IF(B31=$W$24,"",IF(B31=$W$25,"",IF(B31=$W$26,"",IF(B31=$W$27,"",IF(B31=$W$28,"",IF(B31=$W$29,"",IF(B31=$W$30,"",IF(B31=$W$31,"",IF(B31=$W$32,"",IF(B31=$W$33,"",IF(B31=$W$34,"",FORMULARIO!T25))))))))))))))) ->  | N31: 0 | O31: =FORMULARIO!W25 -> 0 | W31: PLATANAL
A32: =+FORMULARIO!A26 ->  | B32: =+IF(FORMULARIO!B26="","",FORMULARIO!B26) ->  | C32: =+IF(B32="","",IF(FORMULARIO!D26="","",IF(B32=$W$33,"",FORMULARIO!D26))) ->  | D32: =+IF(B32="","",IF(FORMULARIO!F26="","",FORMULARIO!F26)) ->  | E32: =+IF(B32="","",IF(FORMULARIO!H26="","",FORMULARIO!H26)) ->  | F32: =+IF(B32="","",IF(FORMULARIO!J26="","",FORMULARIO!J26)) ->  | G32: =+IF(B32="","",IF(FORMULARIO!L26="","",FORMULARIO!L26)) ->  | H32: =+IF(B32="","",IF(FORMULARIO!N26="","",FORMULARIO!N26)) ->  | I32: =+IF(B32="","",IF(FORMULARIO!P26="","",FORMULARIO!P26)) ->  | J32: =+IF(B32="","",IF(FORMULARIO!R26="","",IF(B32=$W$22,"",IF(B32=$W$23,"",IF(B32=$W$24,"",IF(B32=$W$25,"",IF(B32=$W$26,"",IF(B32=$W$27,"",IF(B32=$W$28,"",IF(B32=$W$29,"",IF(B32=$W$30,"",IF(B32=$W$31,"",IF(B32=$W$32,"",IF(B32=$W$33,"",IF(B32=$W$34,"",FORMULARIO!R26))))))))))))))) ->  | K32: =+IF(B32="","",IF(FORMULARIO!T26="","",IF(B32=$W$22,"",IF(B32=$W$23,"",IF(B32=$W$24,"",IF(B32=$W$25,"",IF(B32=$W$26,"",IF(B32=$W$27,"",IF(B32=$W$28,"",IF(B32=$W$29,"",IF(B32=$W$30,"",IF(B32=$W$31,"",IF(B32=$W$32,"",IF(B32=$W$33,"",IF(B32=$W$34,"",FORMULARIO!T26))))))))))))))) ->  | N32: 0 | O32: =FORMULARIO!W26 -> 0 | W32: ZAMBITO
A33: =+FORMULARIO!A27 ->  | B33: =+IF(FORMULARIO!B27="","",FORMULARIO!B27) ->  | C33: =+IF(B33="","",IF(FORMULARIO!D27="","",IF(B33=$W$33,"",FORMULARIO!D27))) ->  | D33: =+IF(B33="","",IF(FORMULARIO!F27="","",FORMULARIO!F27)) ->  | E33: =+IF(B33="","",IF(FORMULARIO!H27="","",FORMULARIO!H27)) ->  | F33: =+IF(B33="","",IF(FORMULARIO!J27="","",FORMULARIO!J27)) ->  | G33: =+IF(B33="","",IF(FORMULARIO!L27="","",FORMULARIO!L27)) ->  | H33: =+IF(B33="","",IF(FORMULARIO!N27="","",FORMULARIO!N27)) ->  | I33: =+IF(B33="","",IF(FORMULARIO!P27="","",FORMULARIO!P27)) ->  | J33: =+IF(B33="","",IF(FORMULARIO!R27="","",IF(B33=$W$22,"",IF(B33=$W$23,"",IF(B33=$W$24,"",IF(B33=$W$25,"",IF(B33=$W$26,"",IF(B33=$W$27,"",IF(B33=$W$28,"",IF(B33=$W$29,"",IF(B33=$W$30,"",IF(B33=$W$31,"",IF(B33=$W$32,"",IF(B33=$W$33,"",IF(B33=$W$34,"",FORMULARIO!R27))))))))))))))) ->  | K33: =+IF(B33="","",IF(FORMULARIO!T27="","",IF(B33=$W$22,"",IF(B33=$W$23,"",IF(B33=$W$24,"",IF(B33=$W$25,"",IF(B33=$W$26,"",IF(B33=$W$27,"",IF(B33=$W$28,"",IF(B33=$W$29,"",IF(B33=$W$30,"",IF(B33=$W$31,"",IF(B33=$W$32,"",IF(B33=$W$33,"",IF(B33=$W$34,"",FORMULARIO!T27))))))))))))))) ->  | N33: 0 | O33: =FORMULARIO!W27 -> 0 | W33: SAN JUAN
A34: =+FORMULARIO!A28 ->  | B34: =+IF(FORMULARIO!B28="","",FORMULARIO!B28) ->  | C34: =+IF(B34="","",IF(FORMULARIO!D28="","",IF(B34=$W$33,"",FORMULARIO!D28))) ->  | D34: =+IF(B34="","",IF(FORMULARIO!F28="","",FORMULARIO!F28)) ->  | E34: =+IF(B34="","",IF(FORMULARIO!H28="","",FORMULARIO!H28)) ->  | F34: =+IF(B34="","",IF(FORMULARIO!J28="","",FORMULARIO!J28)) ->  | G34: =+IF(B34="","",IF(FORMULARIO!L28="","",FORMULARIO!L28)) ->  | H34: =+IF(B34="","",IF(FORMULARIO!N28="","",FORMULARIO!N28)) ->  | I34: =+IF(B34="","",IF(FORMULARIO!P28="","",FORMULARIO!P28)) ->  | J34: =+IF(B34="","",IF(FORMULARIO!R28="","",IF(B34=$W$22,"",IF(B34=$W$23,"",IF(B34=$W$24,"",IF(B34=$W$25,"",IF(B34=$W$26,"",IF(B34=$W$27,"",IF(B34=$W$28,"",IF(B34=$W$29,"",IF(B34=$W$30,"",IF(B34=$W$31,"",IF(B34=$W$32,"",IF(B34=$W$33,"",IF(B34=$W$34,"",FORMULARIO!R28))))))))))))))) ->  | K34: =+IF(B34="","",IF(FORMULARIO!T28="","",IF(B34=$W$22,"",IF(B34=$W$23,"",IF(B34=$W$24,"",IF(B34=$W$25,"",IF(B34=$W$26,"",IF(B34=$W$27,"",IF(B34=$W$28,"",IF(B34=$W$29,"",IF(B34=$W$30,"",IF(B34=$W$31,"",IF(B34=$W$32,"",IF(B34=$W$33,"",IF(B34=$W$34,"",FORMULARIO!T28))))))))))))))) ->  | N34: 0 | O34: =FORMULARIO!W28 -> 0 | W34: LOBOGUERRERO
A35: =+FORMULARIO!A29 ->  | B35: =+IF(FORMULARIO!B29="","",FORMULARIO!B29) ->  | C35: =+IF(B35="","",IF(FORMULARIO!D29="","",IF(B35=$W$33,"",FORMULARIO!D29))) ->  | D35: =+IF(B35="","",IF(FORMULARIO!F29="","",FORMULARIO!F29)) ->  | E35: =+IF(B35="","",IF(FORMULARIO!H29="","",FORMULARIO!H29)) ->  | F35: =+IF(B35="","",IF(FORMULARIO!J29="","",FORMULARIO!J29)) ->  | G35: =+IF(B35="","",IF(FORMULARIO!L29="","",FORMULARIO!L29)) ->  | H35: =+IF(B35="","",IF(FORMULARIO!N29="","",FORMULARIO!N29)) ->  | I35: =+IF(B35="","",IF(FORMULARIO!P29="","",FORMULARIO!P29)) ->  | J35: =+IF(B35="","",IF(FORMULARIO!R29="","",IF(B35=$W$22,"",IF(B35=$W$23,"",IF(B35=$W$24,"",IF(B35=$W$25,"",IF(B35=$W$26,"",IF(B35=$W$27,"",IF(B35=$W$28,"",IF(B35=$W$29,"",IF(B35=$W$30,"",IF(B35=$W$31,"",IF(B35=$W$32,"",IF(B35=$W$33,"",IF(B35=$W$34,"",FORMULARIO!R29))))))))))))))) ->  | K35: =+IF(B35="","",IF(FORMULARIO!T29="","",IF(B35=$W$22,"",IF(B35=$W$23,"",IF(B35=$W$24,"",IF(B35=$W$25,"",IF(B35=$W$26,"",IF(B35=$W$27,"",IF(B35=$W$28,"",IF(B35=$W$29,"",IF(B35=$W$30,"",IF(B35=$W$31,"",IF(B35=$W$32,"",IF(B35=$W$33,"",IF(B35=$W$34,"",FORMULARIO!T29))))))))))))))) ->  | N35: 0 | O35: =FORMULARIO!W29 -> 0 | W35: LA PARADA
A36: =+FORMULARIO!A30 ->  | B36: =+IF(FORMULARIO!B30="","",FORMULARIO!B30) ->  | C36: =+IF(B36="","",IF(FORMULARIO!D30="","",IF(B36=$W$33,"",FORMULARIO!D30))) ->  | D36: =+IF(B36="","",IF(FORMULARIO!F30="","",FORMULARIO!F30)) ->  | E36: =+IF(B36="","",IF(FORMULARIO!H30="","",FORMULARIO!H30)) ->  | F36: =+IF(B36="","",IF(FORMULARIO!J30="","",FORMULARIO!J30)) ->  | G36: =+IF(B36="","",IF(FORMULARIO!L30="","",FORMULARIO!L30)) ->  | H36: =+IF(B36="","",IF(FORMULARIO!N30="","",FORMULARIO!N30)) ->  | I36: =+IF(B36="","",IF(FORMULARIO!P30="","",FORMULARIO!P30)) ->  | J36: =+IF(B36="","",IF(FORMULARIO!R30="","",IF(B36=$W$22,"",IF(B36=$W$23,"",IF(B36=$W$24,"",IF(B36=$W$25,"",IF(B36=$W$26,"",IF(B36=$W$27,"",IF(B36=$W$28,"",IF(B36=$W$29,"",IF(B36=$W$30,"",IF(B36=$W$31,"",IF(B36=$W$32,"",IF(B36=$W$33,"",IF(B36=$W$34,"",FORMULARIO!R30))))))))))))))) ->  | K36: =+IF(B36="","",IF(FORMULARIO!T30="","",IF(B36=$W$22,"",IF(B36=$W$23,"",IF(B36=$W$24,"",IF(B36=$W$25,"",IF(B36=$W$26,"",IF(B36=$W$27,"",IF(B36=$W$28,"",IF(B36=$W$29,"",IF(B36=$W$30,"",IF(B36=$W$31,"",IF(B36=$W$32,"",IF(B36=$W$33,"",IF(B36=$W$34,"",FORMULARIO!T30))))))))))))))) ->  | N36: 0 | O36: =FORMULARIO!W30 -> 0 | W36: EL KORAN
A37: =+FORMULARIO!A31 ->  | B37: =+IF(FORMULARIO!B31="","",FORMULARIO!B31) ->  | C37: =+IF(B37="","",IF(FORMULARIO!D31="","",IF(B37=$W$33,"",FORMULARIO!D31))) ->  | D37: =+IF(B37="","",IF(FORMULARIO!F31="","",FORMULARIO!F31)) ->  | E37: =+IF(B37="","",IF(FORMULARIO!H31="","",FORMULARIO!H31)) ->  | F37: =+IF(B37="","",IF(FORMULARIO!J31="","",FORMULARIO!J31)) ->  | G37: =+IF(B37="","",IF(FORMULARIO!L31="","",FORMULARIO!L31)) ->  | H37: =+IF(B37="","",IF(FORMULARIO!N31="","",FORMULARIO!N31)) ->  | I37: =+IF(B37="","",IF(FORMULARIO!P31="","",FORMULARIO!P31)) ->  | J37: =+IF(B37="","",IF(FORMULARIO!R31="","",IF(B37=$W$22,"",IF(B37=$W$23,"",IF(B37=$W$24,"",IF(B37=$W$25,"",IF(B37=$W$26,"",IF(B37=$W$27,"",IF(B37=$W$28,"",IF(B37=$W$29,"",IF(B37=$W$30,"",IF(B37=$W$31,"",IF(B37=$W$32,"",IF(B37=$W$33,"",IF(B37=$W$34,"",FORMULARIO!R31))))))))))))))) ->  | K37: =+IF(B37="","",IF(FORMULARIO!T31="","",IF(B37=$W$22,"",IF(B37=$W$23,"",IF(B37=$W$24,"",IF(B37=$W$25,"",IF(B37=$W$26,"",IF(B37=$W$27,"",IF(B37=$W$28,"",IF(B37=$W$29,"",IF(B37=$W$30,"",IF(B37=$W$31,"",IF(B37=$W$32,"",IF(B37=$W$33,"",IF(B37=$W$34,"",FORMULARIO!T31))))))))))))))) ->  | N37: 0 | O37: =FORMULARIO!W31 -> 0 | X37: 2023 | Z37: 2024
A38: =+FORMULARIO!A32 ->  | B38: =+IF(FORMULARIO!B32="","",FORMULARIO!B32) ->  | C38: =+IF(B38="","",IF(FORMULARIO!D32="","",IF(B38=$W$33,"",FORMULARIO!D32))) ->  | D38: =+IF(B38="","",IF(FORMULARIO!F32="","",FORMULARIO!F32)) ->  | E38: =+IF(B38="","",IF(FORMULARIO!H32="","",FORMULARIO!H32)) ->  | F38: =+IF(B38="","",IF(FORMULARIO!J32="","",FORMULARIO!J32)) ->  | G38: =+IF(B38="","",IF(FORMULARIO!L32="","",FORMULARIO!L32)) ->  | H38: =+IF(B38="","",IF(FORMULARIO!N32="","",FORMULARIO!N32)) ->  | I38: =+IF(B38="","",IF(FORMULARIO!P32="","",FORMULARIO!P32)) ->  | J38: =+IF(B38="","",IF(FORMULARIO!R32="","",IF(B38=$W$22,"",IF(B38=$W$23,"",IF(B38=$W$24,"",IF(B38=$W$25,"",IF(B38=$W$26,"",IF(B38=$W$27,"",IF(B38=$W$28,"",IF(B38=$W$29,"",IF(B38=$W$30,"",IF(B38=$W$31,"",IF(B38=$W$32,"",IF(B38=$W$33,"",IF(B38=$W$34,"",FORMULARIO!R32))))))))))))))) ->  | K38: =+IF(B38="","",IF(FORMULARIO!T32="","",IF(B38=$W$22,"",IF(B38=$W$23,"",IF(B38=$W$24,"",IF(B38=$W$25,"",IF(B38=$W$26,"",IF(B38=$W$27,"",IF(B38=$W$28,"",IF(B38=$W$29,"",IF(B38=$W$30,"",IF(B38=$W$31,"",IF(B38=$W$32,"",IF(B38=$W$33,"",IF(B38=$W$34,"",FORMULARIO!T32))))))))))))))) ->  | N38: 0 | O38: =FORMULARIO!W32 -> 0 | X38: 22000 | Y38: 13.12% | Z38: =+ROUND(X38*(1+Y38),-2) -> 24,900.00
A39: =+FORMULARIO!A33 ->  | B39: =+IF(FORMULARIO!B33="","",FORMULARIO!B33) ->  | C39: =+IF(B39="","",IF(FORMULARIO!D33="","",IF(B39=$W$33,"",FORMULARIO!D33))) ->  | D39: =+IF(B39="","",IF(FORMULARIO!F33="","",FORMULARIO!F33)) ->  | E39: =+IF(B39="","",IF(FORMULARIO!H33="","",FORMULARIO!H33)) ->  | F39: =+IF(B39="","",IF(FORMULARIO!J33="","",FORMULARIO!J33)) ->  | G39: =+IF(B39="","",IF(FORMULARIO!L33="","",FORMULARIO!L33)) ->  | H39: =+IF(B39="","",IF(FORMULARIO!N33="","",FORMULARIO!N33)) ->  | I39: =+IF(B39="","",IF(FORMULARIO!P33="","",FORMULARIO!P33)) ->  | J39: =+IF(B39="","",IF(FORMULARIO!R33="","",IF(B39=$W$22,"",IF(B39=$W$23,"",IF(B39=$W$24,"",IF(B39=$W$25,"",IF(B39=$W$26,"",IF(B39=$W$27,"",IF(B39=$W$28,"",IF(B39=$W$29,"",IF(B39=$W$30,"",IF(B39=$W$31,"",IF(B39=$W$32,"",IF(B39=$W$33,"",IF(B39=$W$34,"",FORMULARIO!R33))))))))))))))) ->  | K39: =+IF(B39="","",IF(FORMULARIO!T33="","",IF(B39=$W$22,"",IF(B39=$W$23,"",IF(B39=$W$24,"",IF(B39=$W$25,"",IF(B39=$W$26,"",IF(B39=$W$27,"",IF(B39=$W$28,"",IF(B39=$W$29,"",IF(B39=$W$30,"",IF(B39=$W$31,"",IF(B39=$W$32,"",IF(B39=$W$33,"",IF(B39=$W$34,"",FORMULARIO!T33))))))))))))))) ->  | N39: 0 | O39: =FORMULARIO!W33 -> 0
B40: TOTAL | C40: =SUM(C22:C39) -> 0 | D40: 0 | E40: 0 | F40: 0 | G40: 0 | H40: 0 | I40: 0 | J40: 0 | K40: 0 | N40: =SUM(N22:N39) -> 0 | O40: =SUM(O22:O39) -> 0
X41: 2023 | Z41: 2024
C42: CONSIGNACION | N42: Valor Total Tiquetes | O42: =+FORMULARIO!$W$46 -> 0 | V42: 0 | W42: Consignación Local | X42: 0 | Y42: 13.12% | Z42: =+ROUND(X42*(1+Y42),-2) -> 0
W43: Consignación Nacional | X43: $ 15,000 | Y43: 13.12% | Z43: =+ROUND(X43*(1+Y43),-2) -> 17,000.00
N44: Gastos Bancarios | O44: =IF(E42="",0,IF(E42="Consignación Local",Z42,IF(E42="Consignación Nacional",Z43))) -> 0
B46: Firma del Cliente | N46: Gastos de Envio | O46: =IF(O42>0,25000,0) -> 0
N48: Valor Total a Pagar | O48: =SUM(O42:O46) -> 0
B49: DATOS PARA CONSIGNACION
B51: Entidad Bancaria | C51: Banco Davivienda | M51: Cuenta de Ahorros No. | O51: 482800024150
B53: Nombre del Titular: | C53: PA FIDUCIARIA CORFICOLOMBIANA SA | M53: NIT. | O53: 800.256.769-6
A55: PEGAR CONSIGNACION
